Date Paid,Transaction Number,Amount,Supplier Name,Period,Expense Area,Cipfa(T)
02/12/2016,2176826,"16,672.50",Matrix SCM Ltd,201709,Adults Operations,Employees
02/12/2016,2176826,"7,209.70",Matrix SCM Ltd,201709,Communities,Employees
02/12/2016,2176826,"1,896.00",Matrix SCM Ltd,201709,Mental Health,Employees
02/12/2016,2176826,"21,971.44",Matrix SCM Ltd,201709,Safeguarding and Family Support,Employees
02/12/2016,2176826,553.63,REDACTED,201709,Adults Operations,Employees
02/12/2016,2176872,"1,909.93",St Peters C P School Imprest,201709,Schools,Supplies & Services
02/12/2016,2176912,728.06,Cradley Primary School Imprest,201709,Schools,Supplies & Services
02/12/2016,2176920,"1,760.20",REDACTED,201709,Safeguarding and Family Support,Third Party Payments
02/12/2016,2176924,498.46,REDACTED,201709,Safeguarding and Family Support,Third Party Payments
07/12/2016,2177157,"8,897.66",REDACTED,201709,Adults Operations,Supplies & Services
09/12/2016,2179062,"11,555.96",Matrix SCM Ltd,201709,Adults Operations,Employees
09/12/2016,2179062,"4,208.37",Matrix SCM Ltd,201709,Communities,Employees
09/12/2016,2179062,"2,753.71",Matrix SCM Ltd,201709,Education and Commissioning,Employees
09/12/2016,2179062,"1,154.70",Matrix SCM Ltd,201709,Mental Health,Employees
09/12/2016,2179062,"18,228.68",Matrix SCM Ltd,201709,Safeguarding and Family Support,Employees
09/12/2016,2179062,639.63,REDACTED,201709,Adults Operations,Employees
16/12/2016,2179063,"1,756.39",Bromyard Community Transport Ltd,201709,Environment and Place,Supplies & Services
16/12/2016,2179064,"1,877.09",CVS Ledbury & District (Ledbury Ring & Ride)Standing Order,201709,Environment and Place,Supplies & Services
16/12/2016,2179065,"1,399.87",Dore Community Transport,201709,Environment and Place,Supplies & Services
16/12/2016,2179066,750.58,Hay & District Dial a Ride,201709,Environment and Place,Supplies & Services
16/12/2016,2179067,"2,591.10",HVOSS,201709,Environment and Place,Supplies & Services
16/12/2016,2179068,"1,155.57",Ross Country Cars (Standing Order),201709,Environment and Place,Supplies & Services
16/12/2016,2179069,"2,901.58",The Plynlimon Trust Community Car Scheme,201709,Environment and Place,Supplies & Services
16/12/2016,2179070,"42,778.00",Wye Valley NHS Trust,201709,Public Health,Third Party Payments
16/12/2016,2179071,"115,806.29",Worcestershire Health & Care NHS Trust,201709,Public Health,Third Party Payments
16/12/2016,2179072,"193,735.00",Wye Valley NHS Trust,201709,Public Health,Third Party Payments
16/12/2016,2179074,"147,313.06",Addaction,201709,Public Health,Third Party Payments
08/12/2016,2179075,"66,666.67",Hereford Integrated Behaviour Outreach Service,201709,Education and Commissioning,Third Party Payments
08/12/2016,2179076,"1,500.00",Hereford Integrated Behaviour Outreach Service,201709,Education and Commissioning,Third Party Payments
08/12/2016,2179077,"18,463.00",Hereford Integrated Behaviour Outreach Service,201709,Central Childrens Directorate Costs,Third Party Payments
08/12/2016,2179078,"27,500.00",Hereford Integrated Behaviour Outreach Service,201709,Central Childrens Directorate Costs,Third Party Payments
12/12/2016,2179079,600,REDACTED,201709,Adults Operations,Premises-Related Expenditure
08/12/2016,2179080,600,REDACTED,201709,Adults Operations,Premises-Related Expenditure
08/12/2016,2179081,450,REDACTED,201709,Adults Operations,Premises-Related Expenditure
08/12/2016,2179082,450,REDACTED,201709,Adults Operations,Premises-Related Expenditure
08/12/2016,2179084,460,REDACTED,201709,Adults Operations,Premises-Related Expenditure
08/12/2016,2179085,550,REDACTED,201709,Adults Operations,Premises-Related Expenditure
08/12/2016,2179086,480,REDACTED,201709,Adults Operations,Premises-Related Expenditure
08/12/2016,2179087,475,REDACTED,201709,Adults Operations,Premises-Related Expenditure
08/12/2016,2179089,625,REDACTED,201709,Adults Operations,Premises-Related Expenditure
08/12/2016,2179091,"4,333.33",REDACTED,201709,Adults Operations,Premises-Related Expenditure
08/12/2016,2179092,650,REDACTED,201709,Adults Operations,Premises-Related Expenditure
08/12/2016,2179093,420,REDACTED,201709,Adults Operations,Premises-Related Expenditure
08/12/2016,2179094,600,REDACTED,201709,Adults Operations,Premises-Related Expenditure
08/12/2016,2179095,625,REDACTED,201709,Adults Operations,Premises-Related Expenditure
08/12/2016,2179096,587.43,REDACTED,201709,Adults Operations,Premises-Related Expenditure
08/12/2016,2179097,600,REDACTED,201709,Adults Operations,Premises-Related Expenditure
08/12/2016,2179098,525,REDACTED,201709,Adults Operations,Premises-Related Expenditure
08/12/2016,2179099,550,REDACTED,201709,Adults Operations,Premises-Related Expenditure
08/12/2016,2179100,650,REDACTED,201709,Adults Operations,Premises-Related Expenditure
09/12/2016,2179339,"1,392.24",Madley Primary School Imprest A/C,201709,Schools,Supplies & Services
09/12/2016,2179450,613.68,REDACTED,201709,Safeguarding and Family Support,Third Party Payments
09/12/2016,2179451,423.84,REDACTED,201709,Safeguarding and Family Support,Third Party Payments
09/12/2016,2179465,432,REDACTED,201709,Safeguarding and Family Support,Third Party Payments
09/12/2016,2179467,432,REDACTED,201709,Safeguarding and Family Support,Third Party Payments
09/12/2016,2179471,"1,058.40",REDACTED,201709,Safeguarding and Family Support,Third Party Payments
14/12/2016,2179784,"6,553.07",Support Services - Legal,201709,Communities,Supplies & Services
14/12/2016,2179784,"1,800.00",REDACTED,201709,Safeguarding and Family Support,Supplies & Services
14/12/2016,2179785,963.89,St Josephs RC Primary School,201709,Schools,Supplies & Services
14/12/2016,2179830,529,Much Marcle CE Primary School Imprest A/C,201709,Schools,Employees
14/12/2016,2179830,446.88,Much Marcle CE Primary School Imprest A/C,201709,Schools,Supplies & Services
14/12/2016,2179968,700,REDACTED,201709,Safeguarding and Family Support,Third Party Payments
14/12/2016,2180037,"1,881.32",Orleton C.E. Primary School Imprest,201709,Schools,Supplies & Services
16/12/2016,2180051,481.82,West Mercia Energy,201709,Environment and Place,Premises-Related Expenditure
16/12/2016,2180072,"1,909.89",West Mercia Energy,201709,Environment and Place,Premises-Related Expenditure
16/12/2016,2180093,452.83,West Mercia Energy,201709,Environment and Place,Premises-Related Expenditure
16/12/2016,2180096,647.1,West Mercia Energy,201709,Environment and Place,Premises-Related Expenditure
16/12/2016,2180098,"1,189.56",West Mercia Energy,201709,Environment and Place,Premises-Related Expenditure
16/12/2016,2180101,588.13,West Mercia Energy,201709,Environment and Place,Premises-Related Expenditure
16/12/2016,2180122,657.37,West Mercia Energy,201709,Schools,Premises-Related Expenditure
16/12/2016,2180124,746.02,West Mercia Energy,201709,Schools,Premises-Related Expenditure
16/12/2016,2180125,780.77,West Mercia Energy,201709,Environment and Place,Premises-Related Expenditure
16/12/2016,2180127,"1,221.10",West Mercia Energy,201709,Schools,Premises-Related Expenditure
16/12/2016,2180131,501.11,West Mercia Energy,201709,Environment and Place,Premises-Related Expenditure
16/12/2016,2180133,580.43,West Mercia Energy,201709,Environment and Place,Premises-Related Expenditure
16/12/2016,2180136,600.58,West Mercia Energy,201709,Environment and Place,Premises-Related Expenditure
16/12/2016,2180142,"2,263.97",West Mercia Energy,201709,Environment and Place,Premises-Related Expenditure
16/12/2016,2180148,663.85,West Mercia Energy,201709,Schools,Premises-Related Expenditure
16/12/2016,2180151,743.1,West Mercia Energy,201709,Schools,Premises-Related Expenditure
16/12/2016,2180152,938.46,West Mercia Energy,201709,Environment and Place,Premises-Related Expenditure
16/12/2016,2180153,717.15,West Mercia Energy,201709,Environment and Place,Premises-Related Expenditure
16/12/2016,2180155,952.43,West Mercia Energy,201709,Schools,Premises-Related Expenditure
16/12/2016,2180158,422.35,West Mercia Energy,201709,Environment and Place,Premises-Related Expenditure
16/12/2016,2180161,452.58,West Mercia Energy,201709,Environment and Place,Premises-Related Expenditure
16/12/2016,2180165,"2,052.58",West Mercia Energy,201709,Environment and Place,Premises-Related Expenditure
16/12/2016,2180166,"1,082.39",West Mercia Energy,201709,Environment and Place,Premises-Related Expenditure
16/12/2016,2180167,912.1,West Mercia Energy,201709,Environment and Place,Premises-Related Expenditure
16/12/2016,2180168,"12,099.00",West Mercia Energy,201709,Environment and Place,Premises-Related Expenditure
16/12/2016,2180169,"1,324.45",West Mercia Energy,201709,Schools,Premises-Related Expenditure
16/12/2016,2180170,"1,782.12",West Mercia Energy,201709,Schools,Premises-Related Expenditure
16/12/2016,2180171,"1,310.19",West Mercia Energy,201709,Environment and Place,Premises-Related Expenditure
16/12/2016,2180172,"20,827.87",West Mercia Energy,201709,Environment and Place,Premises-Related Expenditure
16/12/2016,2180173,663.32,West Mercia Energy,201709,Schools,Premises-Related Expenditure
16/12/2016,2180176,429.81,West Mercia Energy,201709,Schools,Premises-Related Expenditure
16/12/2016,2180179,417.66,West Mercia Energy,201709,Schools,Premises-Related Expenditure
16/12/2016,2180189,499.97,West Mercia Energy,201709,Environment and Place,Premises-Related Expenditure
16/12/2016,2180193,"1,006.05",West Mercia Energy,201709,Environment and Place,Premises-Related Expenditure
16/12/2016,2180198,526.26,West Mercia Energy,201709,Schools,Premises-Related Expenditure
16/12/2016,2180204,826.87,West Mercia Energy,201709,Schools,Premises-Related Expenditure
16/12/2016,2180208,908.89,West Mercia Energy,201709,Schools,Premises-Related Expenditure
16/12/2016,2180209,507.35,West Mercia Energy,201709,Environment and Place,Premises-Related Expenditure
16/12/2016,2180217,489.73,West Mercia Energy,201709,Environment and Place,Premises-Related Expenditure
16/12/2016,2180221,682.83,West Mercia Energy,201709,Environment and Place,Premises-Related Expenditure
16/12/2016,2180227,568.16,West Mercia Energy,201709,Environment and Place,Premises-Related Expenditure
16/12/2016,2180229,480.81,West Mercia Energy,201709,Environment and Place,Premises-Related Expenditure
16/12/2016,2180231,510.5,West Mercia Energy,201709,Schools,Premises-Related Expenditure
16/12/2016,2180234,585.65,West Mercia Energy,201709,Environment and Place,Premises-Related Expenditure
16/12/2016,2180242,"1,056.46",West Mercia Energy,201709,Schools,Premises-Related Expenditure
16/12/2016,2180243,462.16,West Mercia Energy,201709,Schools,Premises-Related Expenditure
16/12/2016,2180244,563.19,West Mercia Energy,201709,Schools,Premises-Related Expenditure
16/12/2016,2180246,548.63,West Mercia Energy,201709,Schools,Premises-Related Expenditure
16/12/2016,2180251,423.81,West Mercia Energy,201709,Schools,Premises-Related Expenditure
16/12/2016,2180252,"1,272.29",West Mercia Energy,201709,Environment and Place,Premises-Related Expenditure
16/12/2016,2180253,476.99,West Mercia Energy,201709,Schools,Premises-Related Expenditure
16/12/2016,2180254,425.78,West Mercia Energy,201709,Environment and Place,Premises-Related Expenditure
16/12/2016,2180255,683.58,West Mercia Energy,201709,Environment and Place,Premises-Related Expenditure
16/12/2016,2180260,419.33,West Mercia Energy,201709,Schools,Premises-Related Expenditure
16/12/2016,2180262,467.74,West Mercia Energy,201709,Environment and Place,Premises-Related Expenditure
16/12/2016,2180264,637.28,West Mercia Energy,201709,Schools,Premises-Related Expenditure
16/12/2016,2180265,946.25,West Mercia Energy,201709,Schools,Premises-Related Expenditure
16/12/2016,2180271,517.38,West Mercia Energy,201709,Schools,Premises-Related Expenditure
16/12/2016,2180274,513.71,West Mercia Energy,201709,Schools,Premises-Related Expenditure
16/12/2016,2180277,932.64,West Mercia Energy,201709,Schools,Premises-Related Expenditure
16/12/2016,2180278,947.26,West Mercia Energy,201709,Schools,Premises-Related Expenditure
16/12/2016,2180288,"1,404.76",West Mercia Energy,201709,Schools,Premises-Related Expenditure
16/12/2016,2180874,"14,762.14",Matrix SCM Ltd,201709,Adults Operations,Employees
16/12/2016,2180874,"2,090.25",Matrix SCM Ltd,201709,Communities,Employees
16/12/2016,2180874,"1,445.48",Matrix SCM Ltd,201709,Education and Commissioning,Employees
16/12/2016,2180874,"20,529.32",Matrix SCM Ltd,201709,Safeguarding and Family Support,Employees
16/12/2016,2180874,811.63,REDACTED,201709,Adults Operations,Employees
16/12/2016,2180874,"1,074.16",REDACTED,201709,Safeguarding and Family Support,Employees
16/12/2016,2181355,"1,045.00",Beech House Nursery School,201709,Education and Commissioning,Transfer Payments
16/12/2016,2181356,"1,045.00",Bizzie Lizzies,201709,Education and Commissioning,Transfer Payments
16/12/2016,2181357,426,Broadlands Bright Sparks Playgroup,201709,Education and Commissioning,Transfer Payments
16/12/2016,2181358,"1,045.00",Busy Bees Pre School (Clifford),201709,Education and Commissioning,Transfer Payments
16/12/2016,2181359,"1,260.00",Busy Bees @ LPS,201709,Education and Commissioning,Transfer Payments
16/12/2016,2181360,630,Dolly Mixtures Pre School,201709,Education and Commissioning,Transfer Payments
16/12/2016,2181361,630,Hope For Children & Their Families Ltd,201709,Education and Commissioning,Transfer Payments
16/12/2016,2181362,"1,045.00",Oaks Ltd,201709,Education and Commissioning,Transfer Payments
16/12/2016,2181363,"1,045.00",Hunderton Neighbourhood Nursery,201709,Education and Commissioning,Transfer Payments
16/12/2016,2181364,"1,675.00",Kimbolton Nursery Group,201709,Education and Commissioning,Transfer Payments
16/12/2016,2181366,"1,045.00",Lollipops Nursery School And Creche,201709,Education and Commissioning,Transfer Payments
16/12/2016,2181367,834,Madley Pre School,201709,Education and Commissioning,Transfer Payments
16/12/2016,2181368,852,Marden Playgroup,201709,Education and Commissioning,Transfer Payments
16/12/2016,2181369,"1,260.00",Merry Go Round Day Nursery @ Riverside,201709,Education and Commissioning,Transfer Payments
16/12/2016,2181370,"2,090.00",Noahs Ark Pre-School,201709,Education and Commissioning,Transfer Payments
16/12/2016,2181371,"1,056.00",Noahs Ark Pre-School,201709,Education and Commissioning,Transfer Payments
16/12/2016,2181372,970,St Pauls Nursery Group,201709,Education and Commissioning,Transfer Payments
16/12/2016,2181374,630,Wye Nursery,201709,Education and Commissioning,Transfer Payments
16/12/2016,2181375,546,St Michaels CE Primary School,201709,Education and Commissioning,Transfer Payments
16/12/2016,2181376,630,Lord Scudamore Academy (School Fund A/C),201709,Education and Commissioning,Transfer Payments
16/12/2016,2181717,634.49,St Weonards CP School Imprest,201709,Schools,Supplies & Services
16/12/2016,2181718,"3,743.83",Aylestone School Imprest A/C,201709,Schools,Supplies & Services
16/12/2016,2181769,"1,144.11",Brampton Abbotts CE School Imprest,201709,Schools,Supplies & Services
16/12/2016,2181770,497.39,Luston C P School Imprest,201709,Schools,Supplies & Services
16/12/2016,2181783,"1,351.70",REDACTED,201709,Safeguarding and Family Support,Supplies & Services
21/12/2016,2181789,516.34,St Francis Xavier School Imprest,201709,Schools,Supplies & Services
21/12/2016,2181899,645.92,Cradley Primary School Imprest,201709,Schools,Supplies & Services
21/12/2016,2181900,500,REDACTED,201709,Safeguarding and Family Support,Third Party Payments
21/12/2016,2181901,"12,246.19",Ledbury Primary School Imprest,201709,Schools,Supplies & Services
21/12/2016,2181916,"1,137.00",Earl Mortimer College & Sixth Form HCC,201709,Children & Young People Capital,Capital Income
21/12/2016,2181926,777,Marlbrook  Primary School,201709,Children & Young People Capital,Capital Income
21/12/2016,2181930,649,Ashfield Park Primary School,201709,Children & Young People Capital,Capital Income
21/12/2016,2181934,448,Ewyas Harold Primary School-A/C 63712842,201709,Children & Young People Capital,Capital Income
21/12/2016,2181941,794,Riverside Primary School - HCC,201709,Children & Young People Capital,Capital Income
21/12/2016,2181943,458.33,Lugwardine Primary Academy,201709,Central Childrens Directorate Costs,Support Services
21/12/2016,2181950,458.33,Holmer C of E Academy,201709,Central Childrens Directorate Costs,Support Services
21/12/2016,2181952,458.33,Mordiford Church of England Primary School,201709,Central Childrens Directorate Costs,Support Services
21/12/2016,2181953,458.33,St Pauls Church of England Primary School,201709,Central Childrens Directorate Costs,Support Services
21/12/2016,2181954,458.33,St Pauls Church of England Primary School,201709,Central Childrens Directorate Costs,Support Services
21/12/2016,2181956,458.33,Lady Hawkins School (Academy),201709,Central Childrens Directorate Costs,Support Services
21/12/2016,2181958,458.33,John Kyrle High School,201709,Central Childrens Directorate Costs,Support Services
21/12/2016,2181965,458.33,The Hereford Academy,201709,Central Childrens Directorate Costs,Support Services
21/12/2016,2181969,458.33,The Steiner Academy Hereford,201709,Central Childrens Directorate Costs,Support Services
21/12/2016,2181972,"1,033.33",Barrs Court Academy,201709,Central Childrens Directorate Costs,Support Services
21/12/2016,2181973,"1,033.33",Barrs Court Academy,201709,Central Childrens Directorate Costs,Support Services
21/12/2016,2181974,"1,033.33",Barrs Court Academy,201709,Central Childrens Directorate Costs,Support Services
21/12/2016,2181975,"1,033.33",Barrs Court Academy,201709,Central Childrens Directorate Costs,Support Services
21/12/2016,2181976,458.33,Barrs Court Academy,201709,Central Childrens Directorate Costs,Support Services
21/12/2016,2181977,719.17,Barrs Court Academy,201709,Central Childrens Directorate Costs,Support Services
21/12/2016,2181978,719.17,Barrs Court Academy,201709,Central Childrens Directorate Costs,Support Services
21/12/2016,2181979,458.33,Barrs Court Academy,201709,Central Childrens Directorate Costs,Support Services
21/12/2016,2181980,719.17,Barrs Court Academy,201709,Central Childrens Directorate Costs,Support Services
21/12/2016,2181981,"1,033.33",Barrs Court Academy,201709,Central Childrens Directorate Costs,Support Services
21/12/2016,2181982,"1,033.33",Barrs Court Academy,201709,Central Childrens Directorate Costs,Support Services
21/12/2016,2181983,719.17,Barrs Court Academy,201709,Central Childrens Directorate Costs,Support Services
21/12/2016,2181984,"1,033.33",Barrs Court Academy,201709,Central Childrens Directorate Costs,Support Services
21/12/2016,2181985,458.33,Barrs Court Academy,201709,Central Childrens Directorate Costs,Support Services
21/12/2016,2181986,"1,399.17",Barrs Court Academy,201709,Central Childrens Directorate Costs,Support Services
21/12/2016,2181987,719.17,Barrs Court Academy,201709,Central Childrens Directorate Costs,Support Services
21/12/2016,2181988,719.17,Barrs Court Academy,201709,Central Childrens Directorate Costs,Support Services
21/12/2016,2181989,"1,033.33",Barrs Court Academy,201709,Central Childrens Directorate Costs,Support Services
21/12/2016,2181990,719.17,Barrs Court Academy,201709,Central Childrens Directorate Costs,Support Services
21/12/2016,2181991,719.17,Barrs Court Academy,201709,Central Childrens Directorate Costs,Support Services
21/12/2016,2181992,458.33,Barrs Court Academy,201709,Central Childrens Directorate Costs,Support Services
21/12/2016,2181993,"1,033.33",Barrs Court Academy,201709,Central Childrens Directorate Costs,Support Services
21/12/2016,2181994,"1,033.33",Barrs Court Academy,201709,Central Childrens Directorate Costs,Support Services
21/12/2016,2181995,719.17,Barrs Court Academy,201709,Central Childrens Directorate Costs,Support Services
21/12/2016,2181996,719.17,Barrs Court Academy,201709,Central Childrens Directorate Costs,Support Services
21/12/2016,2181997,"1,033.33",Barrs Court Academy,201709,Central Childrens Directorate Costs,Support Services
21/12/2016,2181998,"1,033.33",Barrs Court Academy,201709,Central Childrens Directorate Costs,Support Services
21/12/2016,2181999,719.17,Barrs Court Academy,201709,Central Childrens Directorate Costs,Support Services
21/12/2016,2182000,"1,399.17",Barrs Court Academy,201709,Central Childrens Directorate Costs,Support Services
21/12/2016,2182001,"1,033.33",Barrs Court Academy,201709,Central Childrens Directorate Costs,Support Services
21/12/2016,2182002,"1,033.33",Barrs Court Academy,201709,Central Childrens Directorate Costs,Support Services
21/12/2016,2182003,458.33,Barrs Court Academy,201709,Central Childrens Directorate Costs,Support Services
21/12/2016,2182004,719.17,Barrs Court Academy,201709,Central Childrens Directorate Costs,Support Services
21/12/2016,2182005,458.33,Barrs Court Academy,201709,Central Childrens Directorate Costs,Support Services
21/12/2016,2182006,458.33,Barrs Court Academy,201709,Central Childrens Directorate Costs,Support Services
21/12/2016,2182007,458.33,Barrs Court Academy,201709,Central Childrens Directorate Costs,Support Services
21/12/2016,2182008,719.17,Barrs Court Academy,201709,Central Childrens Directorate Costs,Support Services
21/12/2016,2182009,719.17,Barrs Court Academy,201709,Central Childrens Directorate Costs,Support Services
21/12/2016,2182010,"1,033.33",Barrs Court Academy,201709,Central Childrens Directorate Costs,Support Services
21/12/2016,2182011,719.17,Barrs Court Academy,201709,Central Childrens Directorate Costs,Support Services
21/12/2016,2182012,719.17,Barrs Court Academy,201709,Central Childrens Directorate Costs,Support Services
21/12/2016,2182013,719.17,Barrs Court Academy,201709,Central Childrens Directorate Costs,Support Services
21/12/2016,2182014,"1,033.33",Barrs Court Academy,201709,Central Childrens Directorate Costs,Support Services
21/12/2016,2182015,"1,033.33",Barrs Court Academy,201709,Central Childrens Directorate Costs,Support Services
21/12/2016,2182016,"1,033.33",Barrs Court Academy,201709,Central Childrens Directorate Costs,Support Services
21/12/2016,2182017,"1,033.33",Barrs Court Academy,201709,Central Childrens Directorate Costs,Support Services
21/12/2016,2182018,"1,399.17",Barrs Court Academy,201709,Central Childrens Directorate Costs,Support Services
21/12/2016,2182019,"1,033.33",Barrs Court Academy,201709,Central Childrens Directorate Costs,Support Services
21/12/2016,2182020,"1,033.33",Barrs Court Academy,201709,Central Childrens Directorate Costs,Support Services
21/12/2016,2182021,"1,399.17",Barrs Court Academy,201709,Central Childrens Directorate Costs,Support Services
21/12/2016,2182022,719.17,Barrs Court Academy,201709,Central Childrens Directorate Costs,Support Services
21/12/2016,2182023,719.17,Barrs Court Academy,201709,Central Childrens Directorate Costs,Support Services
21/12/2016,2182024,719.17,Barrs Court Academy,201709,Central Childrens Directorate Costs,Support Services
21/12/2016,2182025,719.17,Barrs Court Academy,201709,Central Childrens Directorate Costs,Support Services
21/12/2016,2182026,719.17,The Brookfield School (Academy),201709,Central Childrens Directorate Costs,Support Services
21/12/2016,2182027,719.17,The Brookfield School (Academy),201709,Central Childrens Directorate Costs,Support Services
21/12/2016,2182028,458.33,The Brookfield School (Academy),201709,Central Childrens Directorate Costs,Support Services
21/12/2016,2182029,719.17,The Brookfield School (Academy),201709,Central Childrens Directorate Costs,Support Services
21/12/2016,2182030,458.33,The Brookfield School (Academy),201709,Central Childrens Directorate Costs,Support Services
21/12/2016,2182031,458.33,The Brookfield School (Academy),201709,Central Childrens Directorate Costs,Support Services
21/12/2016,2182032,458.33,The Brookfield School (Academy),201709,Central Childrens Directorate Costs,Support Services
21/12/2016,2182033,719.17,The Brookfield School (Academy),201709,Central Childrens Directorate Costs,Support Services
21/12/2016,2182034,719.17,The Brookfield School (Academy),201709,Central Childrens Directorate Costs,Support Services
21/12/2016,2182035,719.17,The Brookfield School (Academy),201709,Central Childrens Directorate Costs,Support Services
21/12/2016,2182036,719.17,The Brookfield School (Academy),201709,Central Childrens Directorate Costs,Support Services
21/12/2016,2182037,719.17,The Brookfield School (Academy),201709,Central Childrens Directorate Costs,Support Services
21/12/2016,2182038,458.33,The Brookfield School (Academy),201709,Central Childrens Directorate Costs,Support Services
21/12/2016,2182039,719.17,The Brookfield School (Academy),201709,Central Childrens Directorate Costs,Support Services
21/12/2016,2182040,719.17,The Brookfield School (Academy),201709,Central Childrens Directorate Costs,Support Services
21/12/2016,2182041,719.17,The Brookfield School (Academy),201709,Central Childrens Directorate Costs,Support Services
21/12/2016,2182043,458.33,Whitecross Hereford Academy,201709,Central Childrens Directorate Costs,Support Services
21/12/2016,2182044,458.33,John Masefield High School (Academy),201709,Central Childrens Directorate Costs,Support Services
21/12/2016,2182053,458.33,BAE Trust T/A The Hereford Academy,201709,Central Childrens Directorate Costs,Support Services
21/12/2016,2182054,719.17,The Brookfield School (Academy),201709,Central Childrens Directorate Costs,Support Services
21/12/2016,2182055,719.17,The Brookfield School (Academy),201709,Central Childrens Directorate Costs,Support Services
21/12/2016,2182056,719.17,The Brookfield School (Academy),201709,Central Childrens Directorate Costs,Support Services
21/12/2016,2182057,458.33,Barrs Court Academy,201709,Central Childrens Directorate Costs,Support Services
21/12/2016,2182058,"1,033.33",Barrs Court Academy,201709,Central Childrens Directorate Costs,Support Services
21/12/2016,2182059,"1,399.17",Barrs Court Academy,201709,Central Childrens Directorate Costs,Support Services
21/12/2016,2182060,"1,033.33",Barrs Court Academy,201709,Central Childrens Directorate Costs,Support Services
21/12/2016,2182061,"1,033.33",Barrs Court Academy,201709,Central Childrens Directorate Costs,Support Services
21/12/2016,2182062,719.17,Barrs Court Academy,201709,Central Childrens Directorate Costs,Support Services
21/12/2016,2182063,719.17,Barrs Court Academy,201709,Central Childrens Directorate Costs,Support Services
21/12/2016,2182064,"1,033.33",Barrs Court Academy,201709,Central Childrens Directorate Costs,Support Services
21/12/2016,2182065,458.33,Barrs Court Academy,201709,Central Childrens Directorate Costs,Support Services
21/12/2016,2182066,458.33,Barrs Court Academy,201709,Central Childrens Directorate Costs,Support Services
21/12/2016,2182067,458.33,Barrs Court Academy,201709,Central Childrens Directorate Costs,Support Services
21/12/2016,2182068,458.33,Barrs Court Academy,201709,Central Childrens Directorate Costs,Support Services
21/12/2016,2182069,"1,033.33",Barrs Court Academy,201709,Central Childrens Directorate Costs,Support Services
21/12/2016,2182070,"1,399.17",Barrs Court Academy,201709,Central Childrens Directorate Costs,Support Services
21/12/2016,2182071,"1,033.33",Barrs Court Academy,201709,Central Childrens Directorate Costs,Support Services
21/12/2016,2182072,"2,141.67",The Brookfield School (Academy),201709,Central Childrens Directorate Costs,Support Services
21/12/2016,2182074,458.33,Kingstone High School (Academy),201709,Central Childrens Directorate Costs,Support Services
21/12/2016,2182075,458.33,BAE Trust T/A The Hereford Academy,201709,Central Childrens Directorate Costs,Support Services
21/12/2016,2182076,458.33,The Brookfield School (Academy),201709,Central Childrens Directorate Costs,Support Services
21/12/2016,2182077,458.33,The Brookfield School (Academy),201709,Central Childrens Directorate Costs,Support Services
21/12/2016,2182078,458.33,The Brookfield School (Academy),201709,Central Childrens Directorate Costs,Support Services
21/12/2016,2182079,719.17,Barrs Court Academy,201709,Central Childrens Directorate Costs,Support Services
21/12/2016,2182080,458.33,Barrs Court Academy,201709,Central Childrens Directorate Costs,Support Services
21/12/2016,2182081,719.17,Barrs Court Academy,201709,Central Childrens Directorate Costs,Support Services
21/12/2016,2182082,719.17,Barrs Court Academy,201709,Central Childrens Directorate Costs,Support Services
21/12/2016,2182083,458.33,Ashperton Primary Academy,201709,Central Childrens Directorate Costs,Support Services
21/12/2016,2182086,458.33,Herefordshire Marches Federation-Lord Scudamore,201709,Central Childrens Directorate Costs,Support Services
21/12/2016,2182087,458.33,Lady Hawkins School (Academy),201709,Central Childrens Directorate Costs,Support Services
21/12/2016,2182088,458.33,Barrs Court Academy,201709,Central Childrens Directorate Costs,Support Services
21/12/2016,2182090,719.17,The Brookfield School (Academy),201709,Central Childrens Directorate Costs,Support Services
21/12/2016,2182091,719.17,The Brookfield School (Academy),201709,Central Childrens Directorate Costs,Support Services
21/12/2016,2182092,458.33,The Brookfield School (Academy),201709,Central Childrens Directorate Costs,Support Services
21/12/2016,2182093,458.33,The Brookfield School (Academy),201709,Central Childrens Directorate Costs,Support Services
21/12/2016,2182094,719.17,The Brookfield School (Academy),201709,Central Childrens Directorate Costs,Support Services
21/12/2016,2182095,458.33,The Brookfield School (Academy),201709,Central Childrens Directorate Costs,Support Services
21/12/2016,2182096,719.17,The Brookfield School (Academy),201709,Central Childrens Directorate Costs,Support Services
21/12/2016,2182098,458.33,The Steiner Academy Hereford,201709,Central Childrens Directorate Costs,Support Services
21/12/2016,2182099,"1,033.33",Barrs Court Academy,201709,Central Childrens Directorate Costs,Support Services
21/12/2016,2182102,458.33,Herefordshire Marches Federation-Kings Caple,201709,Central Childrens Directorate Costs,Support Services
21/12/2016,2182104,719.17,The Brookfield School (Academy),201709,Central Childrens Directorate Costs,Support Services
21/12/2016,2182105,458.33,St Thomas Cantilupe CE Academy,201709,Central Childrens Directorate Costs,Support Services
21/12/2016,2182113,458.33,Barrs Court Academy,201709,Central Childrens Directorate Costs,Support Services
21/12/2016,2182114,458.33,Barrs Court Academy,201709,Central Childrens Directorate Costs,Support Services
21/12/2016,2182115,458.33,Barrs Court Academy,201709,Central Childrens Directorate Costs,Support Services
21/12/2016,2182116,"1,033.33",Barrs Court Academy,201709,Central Childrens Directorate Costs,Support Services
21/12/2016,2182118,458.33,The Brookfield School (Academy),201709,Central Childrens Directorate Costs,Support Services
21/12/2016,2182121,458.33,Barrs Court Academy,201709,Central Childrens Directorate Costs,Support Services
21/12/2016,2182123,"1,033.33",Barrs Court Academy,201709,Central Childrens Directorate Costs,Support Services
21/12/2016,2182124,458.33,Barrs Court Academy,201709,Central Childrens Directorate Costs,Support Services
21/12/2016,2182125,"1,033.33",Barrs Court Academy,201709,Central Childrens Directorate Costs,Support Services
21/12/2016,2182126,458.33,Barrs Court Academy,201709,Central Childrens Directorate Costs,Support Services
21/12/2016,2182127,458.33,The Brookfield School (Academy),201709,Central Childrens Directorate Costs,Support Services
21/12/2016,2182128,458.33,The Brookfield School (Academy),201709,Central Childrens Directorate Costs,Support Services
21/12/2016,2182131,458.33,John Masefield High School (Academy),201709,Central Childrens Directorate Costs,Support Services
21/12/2016,2182132,458.33,Barrs Court Academy,201709,Central Childrens Directorate Costs,Support Services
21/12/2016,2182133,719.17,Barrs Court Academy,201709,Central Childrens Directorate Costs,Support Services
21/12/2016,2182134,458.33,Barrs Court Academy,201709,Central Childrens Directorate Costs,Support Services
21/12/2016,2182135,458.33,Barrs Court Academy,201709,Central Childrens Directorate Costs,Support Services
21/12/2016,2182139,458.33,Whitecross Hereford Academy,201709,Central Childrens Directorate Costs,Support Services
21/12/2016,2182140,458.33,The Brookfield School (Academy),201709,Central Childrens Directorate Costs,Support Services
21/12/2016,2182141,458.33,The Brookfield School (Academy),201709,Central Childrens Directorate Costs,Support Services
21/12/2016,2182142,458.33,Robert Owen Academey,201709,Central Childrens Directorate Costs,Support Services
21/12/2016,2182144,458.33,The Brookfield School (Academy),201709,Central Childrens Directorate Costs,Support Services
21/12/2016,2182146,458.33,Ashperton Primary Academy,201709,Central Childrens Directorate Costs,Support Services
21/12/2016,2182147,"1,078.01",Derwen College,201709,Central Childrens Directorate Costs,Support Services
21/12/2016,2182148,"1,104.35",Derwen College,201709,Central Childrens Directorate Costs,Support Services
21/12/2016,2182149,"1,136.31",Derwen College,201709,Central Childrens Directorate Costs,Support Services
21/12/2016,2182150,"1,104.35",Derwen College,201709,Central Childrens Directorate Costs,Support Services
21/12/2016,2182151,"1,136.31",Derwen College,201709,Central Childrens Directorate Costs,Support Services
21/12/2016,2182152,"1,136.31",Derwen College,201709,Central Childrens Directorate Costs,Support Services
21/12/2016,2182153,"1,136.31",Derwen College,201709,Central Childrens Directorate Costs,Support Services
21/12/2016,2182154,629.49,Derwen College,201709,Central Childrens Directorate Costs,Support Services
21/12/2016,2182155,629.49,Derwen College,201709,Central Childrens Directorate Costs,Support Services
21/12/2016,2182156,629.49,Derwen College,201709,Central Childrens Directorate Costs,Support Services
21/12/2016,2182157,629.49,Derwen College,201709,Central Childrens Directorate Costs,Support Services
21/12/2016,2182158,629.49,Derwen College,201709,Central Childrens Directorate Costs,Support Services
21/12/2016,2182159,458.33,Stretton Sugwas CE Academy,201709,Central Childrens Directorate Costs,Support Services
21/12/2016,2182160,458.33,Mordiford Church of England Primary School,201709,Central Childrens Directorate Costs,Support Services
21/12/2016,2182161,458.33,Stretton Sugwas CE Academy,201709,Central Childrens Directorate Costs,Support Services
21/12/2016,2182163,458.33,The Brookfield School (Academy),201709,Central Childrens Directorate Costs,Support Services
21/12/2016,2182164,458.33,The Brookfield School (Academy),201709,Central Childrens Directorate Costs,Support Services
21/12/2016,2182166,458.33,John Masefield High School (Academy),201709,Central Childrens Directorate Costs,Support Services
21/12/2016,2182167,458.33,Brockhampton Primary School (Academy),201709,Central Childrens Directorate Costs,Support Services
21/12/2016,2182168,458.33,Stretton Sugwas CE Academy,201709,Central Childrens Directorate Costs,Support Services
21/12/2016,2182172,458.33,The Brookfield School (Academy),201709,Central Childrens Directorate Costs,Support Services
21/12/2016,2182173,458.33,The Brookfield School (Academy),201709,Central Childrens Directorate Costs,Support Services
21/12/2016,2182175,458.33,The Brookfield School (Academy),201709,Central Childrens Directorate Costs,Support Services
21/12/2016,2182176,719.17,John Kyrle High School,201709,Central Childrens Directorate Costs,Support Services
21/12/2016,2182177,458.33,John Kyrle High School,201709,Central Childrens Directorate Costs,Support Services
21/12/2016,2182178,458.33,St Thomas Cantilupe CE Academy,201709,Central Childrens Directorate Costs,Support Services
21/12/2016,2182180,"1,033.33",The Brookfield School (Academy),201709,Central Childrens Directorate Costs,Support Services
21/12/2016,2182181,719.17,The Brookfield School (Academy),201709,Central Childrens Directorate Costs,Support Services
21/12/2016,2182182,719.17,The Brookfield School (Academy),201709,Central Childrens Directorate Costs,Support Services
21/12/2016,2182183,719.17,The Brookfield School (Academy),201709,Central Childrens Directorate Costs,Support Services
21/12/2016,2182184,719.17,The Brookfield School (Academy),201709,Central Childrens Directorate Costs,Support Services
21/12/2016,2182185,719.17,The Brookfield School (Academy),201709,Central Childrens Directorate Costs,Support Services
21/12/2016,2182186,719.17,The Brookfield School (Academy),201709,Central Childrens Directorate Costs,Support Services
21/12/2016,2182187,719.17,The Brookfield School (Academy),201709,Central Childrens Directorate Costs,Support Services
21/12/2016,2182188,719.17,The Brookfield School (Academy),201709,Central Childrens Directorate Costs,Support Services
21/12/2016,2182189,458.33,Canon Pyon CE Academy,201709,Central Childrens Directorate Costs,Support Services
21/12/2016,2182190,458.33,Barrs Court Academy,201709,Central Childrens Directorate Costs,Support Services
21/12/2016,2182191,458.33,St Pauls Church of England Primary School,201709,Central Childrens Directorate Costs,Support Services
21/12/2016,2182192,458.33,The Brookfield School (Academy),201709,Central Childrens Directorate Costs,Support Services
21/12/2016,2182195,458.33,John Masefield High School (Academy),201709,Central Childrens Directorate Costs,Support Services
21/12/2016,2182196,458.33,The Brookfield School (Academy),201709,Central Childrens Directorate Costs,Support Services
21/12/2016,2182197,"1,399.17",The Brookfield School (Academy),201709,Central Childrens Directorate Costs,Support Services
21/12/2016,2182199,458.33,The Brookfield School (Academy),201709,Central Childrens Directorate Costs,Support Services
21/12/2016,2182201,458.33,The Brookfield School (Academy),201709,Central Childrens Directorate Costs,Support Services
21/12/2016,2182202,458.33,The Brookfield School (Academy),201709,Central Childrens Directorate Costs,Support Services
21/12/2016,2182203,458.33,The Brookfield School (Academy),201709,Central Childrens Directorate Costs,Support Services
21/12/2016,2182204,458.33,Barrs Court Academy,201709,Central Childrens Directorate Costs,Support Services
21/12/2016,2182205,"1,033.33",Barrs Court Academy,201709,Central Childrens Directorate Costs,Support Services
21/12/2016,2182206,719.17,Barrs Court Academy,201709,Central Childrens Directorate Costs,Support Services
21/12/2016,2182209,458.33,Fairfield High School (Academy),201709,Central Childrens Directorate Costs,Support Services
21/12/2016,2182212,458.33,Ashperton Primary Academy,201709,Central Childrens Directorate Costs,Support Services
21/12/2016,2182213,458.33,Ashperton Primary Academy,201709,Central Childrens Directorate Costs,Support Services
21/12/2016,2182217,458.33,The Brookfield School (Academy),201709,Central Childrens Directorate Costs,Support Services
21/12/2016,2182218,458.33,Holmer C of E Academy,201709,Central Childrens Directorate Costs,Support Services
21/12/2016,2182219,458.33,St Thomas Cantilupe CE Academy,201709,Central Childrens Directorate Costs,Support Services
21/12/2016,2182223,458.33,Herefordshire Marches Federation-Lord Scudamore,201709,Central Childrens Directorate Costs,Support Services
21/12/2016,2182224,458.33,St Pauls Church of England Primary School,201709,Central Childrens Directorate Costs,Support Services
21/12/2016,2182225,458.33,St Thomas Cantilupe CE Academy,201709,Central Childrens Directorate Costs,Support Services
21/12/2016,2182227,719.17,BAE Trust T/A The Hereford Academy,201709,Central Childrens Directorate Costs,Support Services
21/12/2016,2182228,458.33,The Steiner Academy Hereford,201709,Central Childrens Directorate Costs,Support Services
21/12/2016,2182229,719.17,The Brookfield School (Academy),201709,Central Childrens Directorate Costs,Support Services
21/12/2016,2182230,719.17,The Brookfield School (Academy),201709,Central Childrens Directorate Costs,Support Services
21/12/2016,2182231,719.17,Wigmore High School (Academy),201709,Central Childrens Directorate Costs,Support Services
21/12/2016,2182232,458.33,Barrs Court Academy,201709,Central Childrens Directorate Costs,Support Services
21/12/2016,2182233,458.33,The Brookfield School (Academy),201709,Central Childrens Directorate Costs,Support Services
21/12/2016,2182235,719.17,The Brookfield School (Academy),201709,Central Childrens Directorate Costs,Support Services
21/12/2016,2182236,458.33,The Brookfield School (Academy),201709,Central Childrens Directorate Costs,Support Services
21/12/2016,2182238,458.33,BAE Trust T/A The Hereford Academy,201709,Central Childrens Directorate Costs,Support Services
21/12/2016,2182239,458.33,The Brookfield School (Academy),201709,Central Childrens Directorate Costs,Support Services
21/12/2016,2182241,719.17,The Brookfield School (Academy),201709,Central Childrens Directorate Costs,Support Services
21/12/2016,2182242,458.33,Barrs Court Academy,201709,Central Childrens Directorate Costs,Support Services
21/12/2016,2182243,"1,399.17",Barrs Court Academy,201709,Central Childrens Directorate Costs,Support Services
21/12/2016,2182244,458.33,Barrs Court Academy,201709,Central Childrens Directorate Costs,Support Services
21/12/2016,2182245,719.17,The Brookfield School (Academy),201709,Central Childrens Directorate Costs,Support Services
21/12/2016,2182246,458.33,John Kyrle High School,201709,Central Childrens Directorate Costs,Support Services
21/12/2016,2182249,458.33,Robert Owen Academey,201709,Central Childrens Directorate Costs,Support Services
21/12/2016,2182250,458.33,Herefordshire Marches Federation Sutton Primary Academy,201709,Central Childrens Directorate Costs,Support Services
21/12/2016,2182252,719.17,Wigmore Primary School (Academy),201709,Central Childrens Directorate Costs,Support Services
21/12/2016,2182254,458.33,The Brookfield School (Academy),201709,Central Childrens Directorate Costs,Support Services
21/12/2016,2182255,458.33,The Brookfield School (Academy),201709,Central Childrens Directorate Costs,Support Services
21/12/2016,2182256,458.33,The Brookfield School (Academy),201709,Central Childrens Directorate Costs,Support Services
21/12/2016,2182257,719.17,The Brookfield School (Academy),201709,Central Childrens Directorate Costs,Support Services
21/12/2016,2182258,719.17,The Brookfield School (Academy),201709,Central Childrens Directorate Costs,Support Services
21/12/2016,2182259,458.33,John Masefield High School (Academy),201709,Central Childrens Directorate Costs,Support Services
21/12/2016,2182260,719.17,The Brookfield School (Academy),201709,Central Childrens Directorate Costs,Support Services
21/12/2016,2182262,576.75,Derwen College,201709,Central Childrens Directorate Costs,Support Services
21/12/2016,2182263,"1,015.83",Derwen College,201709,Central Childrens Directorate Costs,Support Services
21/12/2016,2182266,719.17,Barrs Court Academy,201709,Central Childrens Directorate Costs,Support Services
21/12/2016,2182268,458.33,Lady Hawkins School (Academy),201709,Central Childrens Directorate Costs,Support Services
21/12/2016,2182271,458.33,Herefordshire Marches Federation Sutton Primary Academy,201709,Central Childrens Directorate Costs,Support Services
21/12/2016,2182274,719.17,Holmer C of E Academy,201709,Central Childrens Directorate Costs,Support Services
21/12/2016,2182277,458.33,The Brookfield School (Academy),201709,Central Childrens Directorate Costs,Support Services
21/12/2016,2182278,458.33,The Brookfield School (Academy),201709,Central Childrens Directorate Costs,Support Services
21/12/2016,2182279,"1,033.33",Barrs Court Academy,201709,Central Childrens Directorate Costs,Support Services
21/12/2016,2182280,458.33,Wigmore High School (Academy),201709,Central Childrens Directorate Costs,Support Services
21/12/2016,2182281,458.33,The Brookfield School (Academy),201709,Central Childrens Directorate Costs,Support Services
21/12/2016,2182282,458.33,John Masefield High School (Academy),201709,Central Childrens Directorate Costs,Support Services
21/12/2016,2182285,719.17,Barrs Court Academy,201709,Central Childrens Directorate Costs,Support Services
21/12/2016,2182286,719.17,Barrs Court Academy,201709,Central Childrens Directorate Costs,Support Services
21/12/2016,2182287,"1,033.33",Barrs Court Academy,201709,Central Childrens Directorate Costs,Support Services
21/12/2016,2182288,719.17,Barrs Court Academy,201709,Central Childrens Directorate Costs,Support Services
21/12/2016,2182289,"1,033.33",Barrs Court Academy,201709,Central Childrens Directorate Costs,Support Services
21/12/2016,2182290,"1,033.33",Barrs Court Academy,201709,Central Childrens Directorate Costs,Support Services
21/12/2016,2182291,"1,033.33",Barrs Court Academy,201709,Central Childrens Directorate Costs,Support Services
21/12/2016,2182292,719.17,Barrs Court Academy,201709,Central Childrens Directorate Costs,Support Services
21/12/2016,2182293,458.33,Fairfield High School (Academy),201709,Central Childrens Directorate Costs,Support Services
21/12/2016,2182295,719.17,Barrs Court Academy,201709,Central Childrens Directorate Costs,Support Services
21/12/2016,2182297,458.33,The Brookfield School (Academy),201709,Central Childrens Directorate Costs,Support Services
21/12/2016,2182298,458.33,The Brookfield School (Academy),201709,Central Childrens Directorate Costs,Support Services
21/12/2016,2182300,"3,061.68",National Star College,201709,Central Childrens Directorate Costs,Support Services
21/12/2016,2182301,"1,116.93",National Star College,201709,Central Childrens Directorate Costs,Support Services
21/12/2016,2182302,"4,013.76",National Star College,201709,Central Childrens Directorate Costs,Support Services
21/12/2016,2182303,"1,512.32",National Star College,201709,Central Childrens Directorate Costs,Support Services
21/12/2016,2182305,688,National Star College,201709,Central Childrens Directorate Costs,Support Services
21/12/2016,2182306,522.79,National Star College,201709,Central Childrens Directorate Costs,Support Services
21/12/2016,2182307,"1,533.42",National Star College,201709,Central Childrens Directorate Costs,Support Services
21/12/2016,2182308,"1,547.88",National Star College,201709,Central Childrens Directorate Costs,Support Services
21/12/2016,2182309,"1,565.83",National Star College,201709,Central Childrens Directorate Costs,Support Services
21/12/2016,2182310,885.82,National Star College,201709,Central Childrens Directorate Costs,Support Services
21/12/2016,2182311,"1,068.58",National Star College,201709,Central Childrens Directorate Costs,Support Services
21/12/2016,2182312,965.71,National Star College,201709,Central Childrens Directorate Costs,Support Services
21/12/2016,2182313,987.16,National Star College,201709,Central Childrens Directorate Costs,Support Services
21/12/2016,2182318,458.33,Kingstone & Thruxton Primary School (Academy),201709,Central Childrens Directorate Costs,Support Services
21/12/2016,2182319,719.17,Herefordshire Marches Federation-Lord Scudamore,201709,Central Childrens Directorate Costs,Support Services
21/12/2016,2182320,458.33,St Thomas Cantilupe CE Academy,201709,Central Childrens Directorate Costs,Support Services
21/12/2016,2182324,958.33,Herefordshire & Ludlow College,201709,Central Childrens Directorate Costs,Support Services
21/12/2016,2182325,958.33,Herefordshire & Ludlow College,201709,Central Childrens Directorate Costs,Support Services
21/12/2016,2182326,609.17,Herefordshire & Ludlow College,201709,Central Childrens Directorate Costs,Support Services
21/12/2016,2182327,609.17,Herefordshire & Ludlow College,201709,Central Childrens Directorate Costs,Support Services
21/12/2016,2182328,958.33,Herefordshire & Ludlow College,201709,Central Childrens Directorate Costs,Support Services
21/12/2016,2182329,609.17,Herefordshire & Ludlow College,201709,Central Childrens Directorate Costs,Support Services
21/12/2016,2182330,609.17,Herefordshire & Ludlow College,201709,Central Childrens Directorate Costs,Support Services
21/12/2016,2182331,"1,219.17",Herefordshire & Ludlow College,201709,Central Childrens Directorate Costs,Support Services
21/12/2016,2182332,"1,219.17",Herefordshire & Ludlow College,201709,Central Childrens Directorate Costs,Support Services
21/12/2016,2182333,958.33,Herefordshire & Ludlow College,201709,Central Childrens Directorate Costs,Support Services
21/12/2016,2182334,609.17,Herefordshire & Ludlow College,201709,Central Childrens Directorate Costs,Support Services
21/12/2016,2182335,609.17,Herefordshire & Ludlow College,201709,Central Childrens Directorate Costs,Support Services
21/12/2016,2182336,609.17,Herefordshire & Ludlow College,201709,Central Childrens Directorate Costs,Support Services
21/12/2016,2182338,458.33,Herefordshire & Ludlow College,201709,Central Childrens Directorate Costs,Support Services
21/12/2016,2182340,"1,219.17",Herefordshire & Ludlow College,201709,Central Childrens Directorate Costs,Support Services
21/12/2016,2182342,609.17,Herefordshire & Ludlow College,201709,Central Childrens Directorate Costs,Support Services
21/12/2016,2182343,"1,575.87",National Star College,201709,Central Childrens Directorate Costs,Support Services
21/12/2016,2182344,"1,330.67",National Star College,201709,Central Childrens Directorate Costs,Support Services
21/12/2016,2182346,417.48,National Star College,201709,Central Childrens Directorate Costs,Support Services
21/12/2016,2182347,"1,370.77",National Star College,201709,Central Childrens Directorate Costs,Support Services
21/12/2016,2182348,"1,143.25",National Star College,201709,Central Childrens Directorate Costs,Support Services
21/12/2016,2182349,982.08,Royal National College,201709,Central Childrens Directorate Costs,Support Services
21/12/2016,2182350,770.83,The Plylimon Trust-Horizon Training,201709,Central Childrens Directorate Costs,Support Services
21/12/2016,2182351,"1,219.17",The Plylimon Trust-Horizon Training,201709,Central Childrens Directorate Costs,Support Services
21/12/2016,2182352,609.17,The Plylimon Trust-Horizon Training,201709,Central Childrens Directorate Costs,Support Services
21/12/2016,2182353,"1,219.17",The Plylimon Trust-Horizon Training,201709,Central Childrens Directorate Costs,Support Services
21/12/2016,2182354,"1,033.33",Hoople Ltd,201709,Central Childrens Directorate Costs,Support Services
21/12/2016,2182356,"1,219.17",Hoople Ltd,201709,Central Childrens Directorate Costs,Support Services
21/12/2016,2182357,958.33,Hoople Ltd,201709,Central Childrens Directorate Costs,Support Services
21/12/2016,2182360,543.57,Hereford Sixth Form College,201709,Central Childrens Directorate Costs,Support Services
21/12/2016,2182361,"1,911.67",William Morris Camphill Community,201709,Central Childrens Directorate Costs,Support Services
21/12/2016,2182363,609.17,Herefordshire & Ludlow College,201709,Central Childrens Directorate Costs,Support Services
21/12/2016,2182365,719.17,The Brookfield School (Academy),201709,Central Childrens Directorate Costs,Support Services
21/12/2016,2182366,"4,791.65",Herefordshire & Ludlow College,201709,Central Childrens Directorate Costs,Support Services
21/12/2016,2182368,"1,739.93",The Steiner Academy Hereford,201709,Central Childrens Directorate Costs,Support Services
21/12/2016,2182369,"6,565.50",Queen Alexandra College,201709,Central Childrens Directorate Costs,Support Services
21/12/2016,2182370,"16,890.85",New College,201709,Central Childrens Directorate Costs,Support Services
21/12/2016,2182372,"4,791.65",Gloucestershire College,201709,Central Childrens Directorate Costs,Support Services
21/12/2016,2182373,"6,095.85",Warwickshire College Group,201709,Central Childrens Directorate Costs,Support Services
21/12/2016,2182383,748.61,The Brookfield School (Academy),201709,Central Childrens Directorate Costs,Support Services
21/12/2016,2182384,672.22,The Steiner Academy Hereford,201709,Central Childrens Directorate Costs,Support Services
20/12/2016,2182449,800,Benefits Immediate Payments,201709,Corporate,Transfer Payments
21/12/2016,2182507,433.33,REDACTED,201709,Safeguarding and Family Support,Supplies & Services
21/12/2016,2182509,433.33,REDACTED,201709,Safeguarding and Family Support,Supplies & Services
21/12/2016,2182511,433.33,REDACTED,201709,Safeguarding and Family Support,Supplies & Services
21/12/2016,2182512,"1,320.00",REDACTED,201709,Safeguarding and Family Support,Supplies & Services
21/12/2016,2182513,"1,183.00",REDACTED,201709,Safeguarding and Family Support,Supplies & Services
21/12/2016,2182517,"1,528.00",REDACTED,201709,Safeguarding and Family Support,Supplies & Services
22/12/2016,2185151,"4,633.57",REDACTED,201709,Adults Operations,Supplies & Services
22/12/2016,2185152,"17,827.94",Matrix SCM Ltd,201709,Adults Operations,Employees
22/12/2016,2185152,"1,360.88",Matrix SCM Ltd,201709,Education and Commissioning,Employees
22/12/2016,2185152,"1,216.78",Matrix SCM Ltd,201709,Public Health,Employees
22/12/2016,2185152,"6,451.30",Matrix SCM Ltd,201709,Safeguarding and Family Support,Employees
22/12/2016,2185152,838.5,REDACTED,201709,Adults Operations,Employees
29/12/2016,2185914,"1,525.81",Benefits Immediate Payments,201709,Corporate,Transfer Payments
29/12/2016,2185917,"787,462.09",BT Plc,201709,Communities Capital,Capital Expenditure
29/12/2016,2185921,"570,276.11",Worcestershire County Council,201709,Environment and Place,Third Party Payments
07/12/2016,3835718,"2,072.00",Hoople Ltd,201709,Education and Commissioning,Supplies & Services
07/12/2016,3835722,"2,866.69",Hoople Ltd,201709,Education and Commissioning,Supplies & Services
07/12/2016,3837322,"2,090.00",Hoople Ltd,201709,Education and Commissioning,Supplies & Services
07/12/2016,3839351,939,Welsh Water,201709,Environment and Place,Premises-Related Expenditure
21/12/2016,3839479,736.3,The Contact People,201709,Resources,Supplies & Services
21/12/2016,3843976,736.3,The Contact People,201709,Resources,Supplies & Services
21/12/2016,3844089,"3,973.39",BT Plc,201709,Resources,Supplies & Services
16/12/2016,3845963,672.57,Lex Autolease Ltd,201709,Adults Operations,Transport-Related Expenditure
14/12/2016,3846960,990,UK Container Maintenance Ltd,201709,Environment and Place,Supplies & Services
02/12/2016,3848027,"17,948.00",Capita Business Services Ltd,201709,Resources,Supplies & Services
07/12/2016,3848324,"11,310.15",Lugg Valley Primrose Travel Ltd,201709,Environment and Place,Third Party Payments
14/12/2016,3848522,552,Enabling Technology Limited,201709,Adults Operations,Supplies & Services
21/12/2016,3848524,"1,949.00",Vaisala Ltd,201709,Environment and Place,Supplies & Services
02/12/2016,3848593,"2,380.00",Westcom Business Communications Ltd,201709,Resources Capital,Capital Expenditure
02/12/2016,3848594,640,Westcom Business Communications Ltd,201709,Resources Capital,Capital Expenditure
02/12/2016,3848940,"27,664.00",J.Com (UK) Ltd,201709,Resources Capital,Capital Expenditure
22/12/2016,3849220,"2,860.00",The Caldecott Foundation,201709,Education and Commissioning,Third Party Payments
02/12/2016,3849264,"1,717.17",REDACTED,201709,Resources,Premises-Related Expenditure
02/12/2016,3849265,"36,875.00",REDACTED,201709,Resources,Premises-Related Expenditure
04/01/2017,3849272,800,Insight Direct (UK) Ltd,201709,Resources Capital,Capital Expenditure
07/12/2016,3849283,"2,618.57",Sensory Technology Ltd,201709,Schools,Supplies & Services
02/12/2016,3849394,"45,918.37",R-Com Consulting Ltd,201709,Resources,Supplies & Services
07/12/2016,3849430,820.6,J P Catering,201709,Schools,Supplies & Services
02/12/2016,3849460,"2,639.00",Hoople Ltd,201709,Transformation and safeguarding,Supplies & Services
21/12/2016,3849463,440,Hoople Ltd,201709,Environment and Place,Support Services
02/12/2016,3849476,432.96,Allstar Business Solutions (Direct Debit only),201709,Environment and Place,Transport-Related Expenditure
09/12/2016,3849537,"3,542.40",Arnold Clark Finance Limited,201709,Safeguarding and Family Support,Transport-Related Expenditure
02/12/2016,3849728,779.17,Asgard Secure Steel Storage,201709,Schools,Premises-Related Expenditure
02/12/2016,3849730,"2,773.90",Orleton School Meals,201709,Schools,Supplies & Services
21/12/2016,3849873,420,REDACTED,201709,Mental Health,Supplies & Services
07/12/2016,3849996,"1,905.53",Welsh Water,201709,Environment and Place,Premises-Related Expenditure
21/12/2016,3850011,608.85,REDACTED,201709,Mental Health,Supplies & Services
02/12/2016,3850021,717,Access Independent Ltd,201709,Communities,Supplies & Services
02/12/2016,3850029,840,REDACTED,201709,Schools,Supplies & Services
02/12/2016,3850038,"3,500.00",West Mercia Police & Crime Commissioner,201709,Communities,Supplies & Services
07/12/2016,3850072,"1,294.02",S M Stanley Builders Ltd,201709,Schools,Premises-Related Expenditure
02/12/2016,3850077,448.48,REDACTED,201709,Education and Commissioning,Supplies & Services
02/12/2016,3850081,"2,590.00",Encore Enterprises,201709,Schools,Supplies & Services
02/12/2016,3850083,485,George Youngs Coaches Ltd (Factor A/C),201709,Schools,Transport-Related Expenditure
02/12/2016,3850084,450,George Youngs Coaches Ltd (Factor A/C),201709,Schools,Transport-Related Expenditure
02/12/2016,3850087,665,George Youngs Coaches Ltd (Factor A/C),201709,Schools,Transport-Related Expenditure
02/12/2016,3850088,508.9,West Mercia Energy,201709,Schools,Premises-Related Expenditure
07/12/2016,3850095,"8,868.30",NEPRO Limited,201709,Growth,Employees
02/12/2016,3850096,800,Aashiyana Arts,201709,Communities,Supplies & Services
02/12/2016,3850099,"2,277.50",Cradley Parish Council,201709,Environment and Place,Third Party Payments
02/12/2016,3850107,452.4,Hope Mansell Parish Council,201709,Environment and Place,Third Party Payments
02/12/2016,3850112,750,LABC West,201709,Environment and Place,Employees
07/12/2016,3850113,"1,200.00",Hoople Ltd,201709,Resources,Suspense Accounts
07/12/2016,3850113,"6,000.00",Hoople Ltd,201709,Resources,Third Party Payments
02/12/2016,3850114,"15,788.00",Hoople Ltd,201709,Resources Capital,Capital Expenditure
02/12/2016,3850115,"1,575.27",Hoople Ltd,201709,Resources Capital,Capital Expenditure
02/12/2016,3850116,"4,662.00",Hoople Ltd,201709,Resources Capital,Capital Expenditure
02/12/2016,3850117,"1,300.33",Hoople Ltd,201709,Resources Capital,Capital Expenditure
02/12/2016,3850123,601.25,Hoople Ltd,201709,Schools,Supplies & Services
02/12/2016,3850132,440.59,John Masefield High School (Academy),201709,Education and Commissioning,Transfer Payments
02/12/2016,3850135,490,Herefordshire Housing Ltd,201709,Education and Commissioning,Supplies & Services
02/12/2016,3850142,"1,600.00",Two Boiled Eggs Ltd,201709,Communities,Supplies & Services
02/12/2016,3850155,"3,636.32",Stagecoach Services Limited,201709,Environment and Place,Third Party Payments
14/12/2016,3850157,"1,944.43",Hays Specialist Recruitment Ltd,201709,Environment and Place,Third Party Payments
14/12/2016,3850158,"1,666.65",Hays Specialist Recruitment Ltd,201709,Environment and Place,Third Party Payments
14/12/2016,3850159,"2,222.20",Hays Specialist Recruitment Ltd,201709,Environment and Place,Third Party Payments
14/12/2016,3850160,"1,666.65",Hays Specialist Recruitment Ltd,201709,Environment and Place,Third Party Payments
14/12/2016,3850161,"1,666.65",Hays Specialist Recruitment Ltd,201709,Environment and Place,Third Party Payments
02/12/2016,3850164,461.55,REDACTED,201709,Schools,Supplies & Services
02/12/2016,3850169,440,PAMS Assessments Ltd,201709,Safeguarding and Family Support,Supplies & Services
09/12/2016,3850172,850,SMS Energy Services,201709,Growth Capital,Capital Expenditure
09/12/2016,3850174,550,SMS Energy Services,201709,Growth Capital,Capital Expenditure
02/12/2016,3850183,"1,180.00",REDACTED,201709,Schools,Premises-Related Expenditure
02/12/2016,3850187,609.38,D & D Network Services Ltd,201709,Schools,Supplies & Services
09/12/2016,3850193,"1,450.00",SMS Energy Services,201709,Growth Capital,Capital Expenditure
09/12/2016,3850194,"1,450.00",SMS Energy Services,201709,Growth Capital,Capital Expenditure
09/12/2016,3850194,"1,860.00",SMS Energy Services,201709,Growth Capital,Suspense Accounts
09/12/2016,3850195,550,SMS Energy Services,201709,Growth Capital,Capital Expenditure
09/12/2016,3850195,"1,140.00",SMS Energy Services,201709,Growth Capital,Suspense Accounts
02/12/2016,3850196,720,All Safety Matters Ltd,201709,Schools,Employees
02/12/2016,3850204,425,Royal Mail,201709,Resources,Supplies & Services
02/12/2016,3850218,480,P & P Central Taxis,201709,Education and Commissioning,Transfer Payments
02/12/2016,3850241,446,Marlbrook Collaboration,201709,Schools,Supplies & Services
02/12/2016,3850253,"31,000.00",Geldards LLP Client Account,201709,Growth Capital,Capital Expenditure
02/12/2016,3850254,"18,701.39",REDACTED,201709,Growth Capital,Capital Expenditure
02/12/2016,3850263,510,Oxford University Press,201709,Schools,Supplies & Services
02/12/2016,3850264,"1,828.00",BPF (AV) Ltd,201709,Safeguarding and Family Support,Supplies & Services
02/12/2016,3850270,700,REDACTED,201709,Adults Operations,Supplies & Services
02/12/2016,3850274,"200,000.00",Hereford Integrated Behaviour Outreach Service,201709,Education and Commissioning,Third Party Payments
07/12/2016,3850278,852,Oxford University Press,201709,Schools,Supplies & Services
02/12/2016,3850283,667.04,London Theatre Direct Ltd,201709,Schools,Supplies & Services
02/12/2016,3850292,"1,427.54",S M Stanley Builders Ltd,201709,Schools,Premises-Related Expenditure
07/12/2016,3850295,"2,035.50",Wigmore High School (Academy),201709,Schools,Supplies & Services
07/12/2016,3850309,856.99,West Mercia Supplies (The Consortium),201709,Schools,Supplies & Services
02/12/2016,3850314,"5,300.00",Avco Systems Ltd,201709,Resources,Supplies & Services
02/12/2016,3850326,479,Yorkshire Purchasing,201709,Schools,Supplies & Services
02/12/2016,3850327,901.65,S M Stanley Builders Ltd,201709,Schools,Premises-Related Expenditure
02/12/2016,3850331,583.3,Twinkl Ltd,201709,Schools,Supplies & Services
07/12/2016,3850333,604.04,REDACTED,201709,Environment and Place,Supplies & Services
02/12/2016,3850336,611.46,REDACTED,201709,Adults Operations,Supplies & Services
09/12/2016,3850343,"1,500.00",SMS Energy Services,201709,Growth Capital,Capital Expenditure
02/12/2016,3850344,550,Independent Social Work Assessments (East Midlands),201709,Mental Health,Supplies & Services
02/12/2016,3850350,"30,000.00",Ivington School Governors,201709,Schools,Supplies & Services
07/12/2016,3850358,"2,015.00",Neopost Limited,201709,Communities,Supplies & Services
07/12/2016,3850358,"1,076.56",Neopost Limited,201709,Resources,Supplies & Services
02/12/2016,3850364,"2,065.00",Network Fencing & Landscaping,201709,Schools,Premises-Related Expenditure
02/12/2016,3850366,"1,593.20",Food For Thought,201709,Schools,Supplies & Services
02/12/2016,3850367,425.5,Mayglothling Waste  Disposal Ltd,201709,Schools,Premises-Related Expenditure
02/12/2016,3850380,"12,761.16",Western Power Distribution,201709,Growth Capital,Capital Expenditure
02/12/2016,3850386,"3,420.00",UK Container Maintenance Ltd,201709,Environment and Place,Supplies & Services
02/12/2016,3850388,644,Teales Domestic & Ironing Services,201709,Schools,Premises-Related Expenditure
02/12/2016,3850389,"1,000.00",P W Jones (Hereford) Ltd,201709,Schools,Transport-Related Expenditure
02/12/2016,3850395,"2,501.55",REDACTED,201709,Environment and Place,Third Party Payments
02/12/2016,3850397,670.8,Halo Leisure Services Ltd,201709,Schools,Premises-Related Expenditure
02/12/2016,3850407,600,Ace Health,201709,Schools,Supplies & Services
02/12/2016,3850411,600,Capita Business Services Ltd,201709,Resources,Supplies & Services
02/12/2016,3850412,794.2,Brookes Brothers (London) Ltd,201709,Schools,Supplies & Services
02/12/2016,3850413,828.2,Brookes Brothers (London) Ltd,201709,Schools,Supplies & Services
02/12/2016,3850416,823.65,Brookes Brothers (London) Ltd,201709,Schools,Supplies & Services
07/12/2016,3850417,"27,789.66",Portakabin Ltd,201709,Education and Commissioning,Premises-Related Expenditure
02/12/2016,3850420,"100,000.00",Shropshire Council,201709,Growth,Third Party Payments
14/12/2016,3850421,"10,000.00",HAGS SMP Ltd,201709,Environment and Place,Supplies & Services
02/12/2016,3850422,"1,025.00",REDACTED,201709,Communities,Third Party Payments
07/12/2016,3850431,663.9,REDACTED,201709,Mental Health,Supplies & Services
07/12/2016,3850432,425.85,REDACTED,201709,Mental Health,Supplies & Services
02/12/2016,3850447,550,Independent Social Work Assessments (East Midlands),201709,Mental Health,Supplies & Services
02/12/2016,3850448,550,Independent Social Work Assessments (East Midlands),201709,Mental Health,Supplies & Services
02/12/2016,3850449,550,Independent Social Work Assessments (East Midlands),201709,Mental Health,Supplies & Services
02/12/2016,3850450,550,Independent Social Work Assessments (East Midlands),201709,Mental Health,Supplies & Services
02/12/2016,3850451,550,Independent Social Work Assessments (East Midlands),201709,Mental Health,Supplies & Services
02/12/2016,3850452,550,Independent Social Work Assessments (East Midlands),201709,Mental Health,Supplies & Services
02/12/2016,3850453,550,Independent Social Work Assessments (East Midlands),201709,Mental Health,Supplies & Services
02/12/2016,3850454,550,Independent Social Work Assessments (East Midlands),201709,Mental Health,Supplies & Services
02/12/2016,3850455,550,Independent Social Work Assessments (East Midlands),201709,Mental Health,Supplies & Services
02/12/2016,3850456,550,Independent Social Work Assessments (East Midlands),201709,Mental Health,Supplies & Services
02/12/2016,3850457,550,Independent Social Work Assessments (East Midlands),201709,Mental Health,Supplies & Services
02/12/2016,3850464,"107,001.70",XMA Ltd,201709,Resources,Supplies & Services
02/12/2016,3850465,"1,504.14",XMA Ltd,201709,Resources,Supplies & Services
07/12/2016,3850468,"9,485.36",Bertram Trading Ltd,201709,Communities,Supplies & Services
07/12/2016,3850470,525,Chaplins Limited,201709,Schools,Supplies & Services
07/12/2016,3850471,481.94,Local Government Association,201709,Communities,Supplies & Services
02/12/2016,3850472,420,The Internet Shop Ltd,201709,Schools,Premises-Related Expenditure
02/12/2016,3850473,780.12,Bertram Trading Ltd,201709,Communities,Supplies & Services
02/12/2016,3850475,"2,406.40",REDACTED,201709,Safeguarding and Family Support,Supplies & Services
02/12/2016,3850480,476.32,G E Bright Electrical Ltd,201709,Schools,Premises-Related Expenditure
02/12/2016,3850484,523.49,Midshire Business Systems Ltd,201709,Schools,Supplies & Services
07/12/2016,3850488,"1,449.00",Red Spark Learning CIC,201709,Education and Commissioning,Supplies & Services
02/12/2016,3850489,"1,925.00",Red Spark Learning CIC,201709,Education and Commissioning,Supplies & Services
02/12/2016,3850490,496,Impact Print And Design Ltd,201709,Environment and Place,Supplies & Services
02/12/2016,3850491,496,Impact Print And Design Ltd,201709,Environment and Place,Supplies & Services
07/12/2016,3850500,557.49,Bertram Trading Ltd,201709,Communities,Supplies & Services
02/12/2016,3850505,"2,780.17",Gwersyll yr Urdd Cawedydd,201709,Schools,Supplies & Services
09/12/2016,3850531,581.4,Assessment & Qualifications Alliance (AQA),201709,Schools,Supplies & Services
07/12/2016,3850535,780,Assessment & Qualifications Alliance (AQA),201709,Schools,Employees
02/12/2016,3850540,"3,440.00",Two Boiled Eggs Ltd,201709,Communities,Supplies & Services
02/12/2016,3850542,511.38,Highground Maintenance Limited,201709,Schools,Premises-Related Expenditure
02/12/2016,3850545,769.49,Boss,201709,Schools,Supplies & Services
02/12/2016,3850548,"1,200.00",The Red Ridge Centre,201709,Schools,Supplies & Services
02/12/2016,3850550,"1,380.00",Coordination Group Publications Ltd,201709,Schools,Supplies & Services
02/12/2016,3850551,"1,336.30",123Comms Ltd,201709,Schools,Supplies & Services
02/12/2016,3850552,630,123Comms Ltd,201709,Schools,Supplies & Services
02/12/2016,3850563,"2,392.00",Lord Combustion Services Ltd,201709,Schools Devolved Capital,Capital Expenditure
02/12/2016,3850564,"1,200.00",Anubis UK Ltd,201709,Schools,Employees
02/12/2016,3850577,700,Whitecross Hereford Academy,201709,Schools,Supplies & Services
02/12/2016,3850582,"1,140.00",D & D Network Services Ltd,201709,Schools,Supplies & Services
02/12/2016,3850591,619.2,Halo Leisure Services Ltd,201709,Schools,Premises-Related Expenditure
07/12/2016,3850608,"3,545.60",S M Stanley Builders Ltd,201709,Schools Devolved Capital,Capital Expenditure
07/12/2016,3850609,"3,234.00",Yeomans Travel Ltd,201709,Schools,Supplies & Services
09/12/2016,3850612,"2,426.50",The Escleyside Hall,201709,Schools,Premises-Related Expenditure
07/12/2016,3850620,"1,225.00",REDACTED,201709,Environment and Place,Supplies & Services
07/12/2016,3850622,"1,784.80",Wigmore High School (Academy),201709,Schools,Supplies & Services
07/12/2016,3850628,658.57,Highground Maintenance Limited,201709,Schools,Premises-Related Expenditure
07/12/2016,3850630,"1,826.80",The Music Pool,201709,Communities,Supplies & Services
07/12/2016,3850633,"1,180.58",Marches Counselling Service,201709,Public Health,Transfer Payments
07/12/2016,3850634,"1,770.40",Brightstripe - Cultural Health CIC,201709,Public Health,Transfer Payments
07/12/2016,3850635,983.72,Npower,201709,Schools,Premises-Related Expenditure
09/12/2016,3850637,"9,289.11",Peters Bookselling Services,201709,Communities,Supplies & Services
07/12/2016,3850638,"1,413.80",REDACTED,201709,Communities,Supplies & Services
07/12/2016,3850639,"3,758.15",Alliance In Partnership,201709,Schools,Supplies & Services
07/12/2016,3850644,"3,450.00",S M Stanley Builders Ltd,201709,Schools Devolved Capital,Capital Expenditure
07/12/2016,3850645,495,Aerial - Cam Ltd,201709,Environment and Place,Supplies & Services
07/12/2016,3850646,450,REDACTED,201709,Environment and Place,Supplies & Services
07/12/2016,3850664,"5,464.30",Wilkin Chapman LLP,201709,Communities,Supplies & Services
07/12/2016,3850671,619.2,Halo Leisure Services Ltd,201709,Schools,Premises-Related Expenditure
07/12/2016,3850672,541.94,Calor Gas Ltd,201709,Schools,Premises-Related Expenditure
07/12/2016,3850712,675,Smiths Motors Ledbury Ltd,201709,Schools,Supplies & Services
,3850716,"1,153.86",ALS Life Sciences Ltd (Direct Debit),201709,Environment and Place,Supplies & Services
07/12/2016,3850727,"1,225.00",The Archaeology Company Ltd,201709,Environment and Place,Supplies & Services
09/12/2016,3850751,845,Herefordshire Lore,201709,Communities,Supplies & Services
07/12/2016,3850761,"1,135.33",Hoople Ltd,201709,Resources Capital,Capital Expenditure
07/12/2016,3850762,"2,217.33",Hoople Ltd,201709,Resources Capital,Capital Expenditure
07/12/2016,3850764,"3,000.00",Hoople Ltd,201709,Resources Capital,Capital Expenditure
07/12/2016,3850765,"12,000.00",Hoople Ltd,201709,Resources,Third Party Payments
07/12/2016,3850770,"1,495.00",LG Futures Ltd,201709,Resources,Supplies & Services
07/12/2016,3850771,"3,304.00",Supplymeprint.com Ltd T/A ABC,201709,Environment and Place,Supplies & Services
07/12/2016,3850772,"9,118.46",Herefordshire Vision Links,201709,Commissioning Adults,Supplies & Services
07/12/2016,3850773,"9,118.46",Herefordshire Vision Links,201709,Commissioning Adults,Supplies & Services
07/12/2016,3850774,"9,118.46",Herefordshire Vision Links,201709,Commissioning Adults,Supplies & Services
07/12/2016,3850775,"9,118.46",Herefordshire Vision Links,201709,Commissioning Adults,Supplies & Services
07/12/2016,3850778,700,Story Shapers,201709,Schools,Supplies & Services
07/12/2016,3850791,"1,128.00",Protelhealth Limited,201709,Transformation and safeguarding,Supplies & Services
07/12/2016,3850797,"3,333.33",Harrison Clark Rickerbys Ltd,201709,Growth,Supplies & Services
07/12/2016,3850801,"1,815.00",P W Jones (Hereford) Ltd,201709,Environment and Place,Transport-Related Expenditure
07/12/2016,3850802,"3,686.11",P W Jones (Hereford) Ltd,201709,Environment and Place,Transport-Related Expenditure
07/12/2016,3850803,"4,619.99",P W Jones (Hereford) Ltd,201709,Environment and Place,Transport-Related Expenditure
07/12/2016,3850804,"3,729.00",P W Jones (Hereford) Ltd,201709,Environment and Place,Transport-Related Expenditure
,3850806,"2,007.00",Aquarium CMS Ltd (Direct Debit),201709,Integrated Commissioning,Capital Expenditure
07/12/2016,3850808,"1,541.76",REDACTED,201709,Environment and Place,Transport-Related Expenditure
07/12/2016,3850809,"2,480.52",REDACTED,201709,Environment and Place,Transport-Related Expenditure
07/12/2016,3850810,"2,011.24",REDACTED,201709,Environment and Place,Transport-Related Expenditure
07/12/2016,3850811,"4,180.01",REDACTED,201709,Environment and Place,Transport-Related Expenditure
07/12/2016,3850812,"2,200.00",Bowyer's Coaches,201709,Environment and Place,Transport-Related Expenditure
07/12/2016,3850816,"2,435.00",B & B Services Ltd,201709,Housing & Independent Living Capital,Capital Expenditure
09/12/2016,3850817,"2,317.00",Ridley Electronics Ltd,201709,Housing & Independent Living Capital,Capital Expenditure
09/12/2016,3850820,428.5,REDACTED,201709,Communities,Supplies & Services
09/12/2016,3850824,711,Sunderlands & Thompsons LLP,201709,Resources,Supplies & Services
09/12/2016,3850830,"2,400.00",HMCTS,201709,Environment and Place,Supplies & Services
07/12/2016,3850848,612.31,Edutech Solutions Ltd,201709,Schools,Supplies & Services
07/12/2016,3850854,560.7,Leominster Primary School Imprest,201709,Schools,Premises-Related Expenditure
07/12/2016,3850854,683.22,Leominster Primary School Imprest,201709,Schools,Supplies & Services
07/12/2016,3850860,980,Luctonians Sports Club Ltd,201709,Public Health,Supplies & Services
07/12/2016,3850861,500,Arts Council England,201709,Schools,Supplies & Services
07/12/2016,3850863,740,The Key Support Services Ltd,201709,Schools,Supplies & Services
07/12/2016,3850865,577.5,Halo Leisure Services Ltd,201709,Schools,Premises-Related Expenditure
07/12/2016,3850869,525.6,REDACTED,201709,Schools,Premises-Related Expenditure
07/12/2016,3850872,850,Sports Directory UK,201709,Schools,Supplies & Services
07/12/2016,3850873,"5,000.00",Robot Bike Company Ltd,201709,Growth,Transfer Payments
07/12/2016,3850884,"8,170.00",Insight Direct (UK) Ltd,201709,Resources Capital,Capital Expenditure
07/12/2016,3850887,640,Insight Direct (UK) Ltd,201709,Resources Capital,Capital Expenditure
07/12/2016,3850888,"4,190.00",PTFS Ltd,201709,Environment and Place,Supplies & Services
07/12/2016,3850899,"56,250.00",South West Audit Partnership Ltd - SWAP,201709,Resources,Supplies & Services
07/12/2016,3850900,"4,025.98",Leominster Taxis & Travel,201709,Environment and Place,Transport-Related Expenditure
07/12/2016,3850901,"2,419.98",Leominster Taxis & Travel,201709,Environment and Place,Transport-Related Expenditure
07/12/2016,3850902,"1,000.00",Caplor Energy Ltd,201709,Environment and Place,Transfer Payments
07/12/2016,3850903,"2,237.76",Worcestershire County Council,201709,Environment and Place,Third Party Payments
07/12/2016,3850904,"3,079.98",REDACTED,201709,Environment and Place,Transport-Related Expenditure
07/12/2016,3850905,"2,640.00",REDACTED,201709,Environment and Place,Transport-Related Expenditure
07/12/2016,3850906,"499,659.72",Integral UK Ltd,201709,Holding Codes,Holding Codes
07/12/2016,3850913,"3,299.98",REDACTED,201709,Environment and Place,Transport-Related Expenditure
07/12/2016,3850914,"2,859.98",REDACTED,201709,Environment and Place,Transport-Related Expenditure
07/12/2016,3850915,"3,080.00",REDACTED,201709,Environment and Place,Transport-Related Expenditure
07/12/2016,3850916,"3,190.00",REDACTED,201709,Environment and Place,Transport-Related Expenditure
07/12/2016,3850919,"2,969.98",REDACTED,201709,Environment and Place,Transport-Related Expenditure
07/12/2016,3850920,"2,595.98",REDACTED,201709,Environment and Place,Transport-Related Expenditure
07/12/2016,3850936,422.64,Oxford University Press,201709,Schools,Supplies & Services
07/12/2016,3850937,"1,515.62",Sentinel Security Systems,201709,Schools,Premises-Related Expenditure
07/12/2016,3850945,832,The Key Support Services Ltd,201709,Schools,Support Services
07/12/2016,3850954,450,REDACTED,201709,Schools,Supplies & Services
07/12/2016,3850955,"3,080.00",REDACTED,201709,Environment and Place,Transport-Related Expenditure
07/12/2016,3850956,"5,037.57",Yeomans Travel Ltd,201709,Environment and Place,Transport-Related Expenditure
14/12/2016,3850957,880,REDACTED,201709,Learning Disabilities,Transport-Related Expenditure
07/12/2016,3850958,"4,331.28",REDACTED,201709,Environment and Place,Transport-Related Expenditure
09/12/2016,3850959,"1,400.00",REDACTED,201709,Schools,Supplies & Services
21/12/2016,3850960,"4,012.84",Adept Telecom PLC,201709,Resources,Supplies & Services
21/12/2016,3850961,"1,945.64",Adept Telecom PLC,201709,Resources,Supplies & Services
07/12/2016,3850968,"2,706.40",REDACTED,201709,Schools,Employees
07/12/2016,3850969,"2,475.00",REDACTED,201709,Schools,Employees
07/12/2016,3850970,"1,200.00",Eastnor Pottery,201709,Schools,Supplies & Services
07/12/2016,3850982,480,S & R Taxis,201709,Physical Disabilities,Transport-Related Expenditure
07/12/2016,3850984,704,Simon's Taxis,201709,Environment and Place,Transport-Related Expenditure
07/12/2016,3850985,430,Northern Link Traffic Data Consultancy Ltd,201709,Commissioning Capital,Capital Expenditure
07/12/2016,3850986,"1,330.00",JMP Consultants Ltd,201709,Environment and Place,Third Party Payments
07/12/2016,3850996,496.83,Dell Corporation Ltd,201709,Schools,Supplies & Services
07/12/2016,3850999,525,Hereford Integrated Behaviour Outreach Service,201709,Schools,Supplies & Services
07/12/2016,3851002,968.98,Highground Maintenance Limited,201709,Schools,Premises-Related Expenditure
07/12/2016,3851017,"1,188.00",Minibus Services,201709,Learning Disabilities,Transport-Related Expenditure
07/12/2016,3851018,"1,320.00",Minibus Services,201709,Learning Disabilities,Transport-Related Expenditure
07/12/2016,3851020,"1,650.00",Enterprise Rent A Car UK T/A Flex E Rent,201709,Environment and Place,Transport-Related Expenditure
07/12/2016,3851021,"3,122.90",The Plynlimon Trust Community Car Scheme,201709,Environment and Place,Transport-Related Expenditure
07/12/2016,3851022,"1,461.90",The Plynlimon Trust Community Car Scheme,201709,Environment and Place,Transport-Related Expenditure
07/12/2016,3851023,"3,142.48",The Plynlimon Trust Community Car Scheme,201709,Environment and Place,Transport-Related Expenditure
07/12/2016,3851024,"1,516.90",REDACTED,201709,Environment and Place,Transport-Related Expenditure
07/12/2016,3851025,"3,300.00",REDACTED,201709,Environment and Place,Transport-Related Expenditure
07/12/2016,3851026,"2,860.00",REDACTED,201709,Environment and Place,Transport-Related Expenditure
07/12/2016,3851027,"1,650.00",Venture Taxi Services Ltd,201709,Environment and Place,Transport-Related Expenditure
07/12/2016,3851028,"1,749.00",REDACTED,201709,Environment and Place,Transport-Related Expenditure
07/12/2016,3851037,"2,959.00",REDACTED,201709,Environment and Place,Transport-Related Expenditure
07/12/2016,3851038,"25,354.56",George Youngs Coaches Ltd,201709,Environment and Place,Transport-Related Expenditure
07/12/2016,3851039,"3,299.98",M&S Coaches Of Hereford Limited,201709,Environment and Place,Transport-Related Expenditure
07/12/2016,3851040,"3,036.00",M&S Coaches Of Hereford Limited,201709,Environment and Place,Transport-Related Expenditure
07/12/2016,3851041,"3,739.99",M&S Coaches Of Hereford Limited,201709,Environment and Place,Transport-Related Expenditure
07/12/2016,3851042,"3,300.00",M&S Coaches Of Hereford Limited,201709,Environment and Place,Transport-Related Expenditure
07/12/2016,3851043,"3,036.00",M&S Coaches Of Hereford Limited,201709,Environment and Place,Transport-Related Expenditure
07/12/2016,3851044,440,M&S Coaches Of Hereford Limited,201709,Environment and Place,Transport-Related Expenditure
07/12/2016,3851045,"2,970.00",M&S Coaches Of Hereford Limited,201709,Environment and Place,Transport-Related Expenditure
07/12/2016,3851046,"16,247.00",Herdman Coaches Ltd,201709,Environment and Place,Transport-Related Expenditure
07/12/2016,3851047,"1,529.00",Leominster Taxis & Travel,201709,Environment and Place,Transport-Related Expenditure
07/12/2016,3851048,"1,100.00",Leominster Taxis & Travel,201709,Environment and Place,Transport-Related Expenditure
09/12/2016,3851052,"1,050.00",REDACTED,201709,Communities,Supplies & Services
07/12/2016,3851053,474.72,REDACTED,201709,Communities,Supplies & Services
07/12/2016,3851055,"3,025.84",Red Spark Learning CIC,201709,Education and Commissioning,Supplies & Services
09/12/2016,3851058,421,Callcredit,201709,Resources,Supplies & Services
07/12/2016,3851059,"2,307.80",Ace Coaches & Travel,201709,Environment and Place,Transport-Related Expenditure
07/12/2016,3851060,"2,551.99",Ace Coaches & Travel,201709,Environment and Place,Transport-Related Expenditure
07/12/2016,3851061,"1,606.00",REDACTED,201709,Environment and Place,Transport-Related Expenditure
07/12/2016,3851062,"2,079.00",REDACTED,201709,Environment and Place,Transport-Related Expenditure
07/12/2016,3851063,"1,782.00",REDACTED,201709,Environment and Place,Transport-Related Expenditure
07/12/2016,3851064,"1,782.00",REDACTED,201709,Environment and Place,Transport-Related Expenditure
07/12/2016,3851065,"1,683.00",REDACTED,201709,Environment and Place,Transport-Related Expenditure
07/12/2016,3851066,"1,760.00",REDACTED,201709,Environment and Place,Transport-Related Expenditure
07/12/2016,3851067,"3,456.42",Sargeants Brothers Ltd,201709,Environment and Place,Transport-Related Expenditure
07/12/2016,3851068,"2,860.00",Sargeants Brothers Ltd,201709,Environment and Place,Transport-Related Expenditure
07/12/2016,3851069,"22,000.00",Sargeants Brothers Ltd,201709,Environment and Place,Transport-Related Expenditure
07/12/2016,3851070,"33,480.92",DRM (Bromyard) Ltd,201709,Environment and Place,Transport-Related Expenditure
07/12/2016,3851071,"37,491.52",Lugg Valley Primrose Travel Ltd,201709,Environment and Place,Transport-Related Expenditure
07/12/2016,3851072,"1,540.01",Simon's Taxis,201709,Environment and Place,Transport-Related Expenditure
07/12/2016,3851074,"2,280.02",Simon's Taxis,201709,Environment and Place,Transport-Related Expenditure
07/12/2016,3851075,"5,040.00",University Of Birmingham,201709,Safeguarding and Family Support,Supplies & Services
07/12/2016,3851080,512,Royal Inst Of Chartered Surveyors (RICS),201709,Environment and Place,Supplies & Services
09/12/2016,3851081,485,Callcredit,201709,Resources,Supplies & Services
07/12/2016,3851083,"2,052.00",QA Plus Ltd,201709,Education and Commissioning,Supplies & Services
07/12/2016,3851084,500,National Association of Virtual School Heads,201709,Education and Commissioning,Supplies & Services
07/12/2016,3851086,"6,121.00",National Youth Advocacy Service (nyas),201709,Education and Commissioning,Third Party Payments
07/12/2016,3851090,"17,409.25",National Youth Advocacy Service (nyas),201709,Education and Commissioning,Third Party Payments
07/12/2016,3851091,"40,000.00",Worcestershire County Council,201709,Education and Commissioning,Third Party Payments
07/12/2016,3851092,868.19,Trinity Primary School (Imprest/Petty Cash),201709,Schools,Supplies & Services
07/12/2016,3851107,"1,145.85",Three Counties Hotel,201709,Education and Commissioning,Premises-Related Expenditure
07/12/2016,3851110,887.08,REDACTED,201709,Schools,Premises-Related Expenditure
07/12/2016,3851113,"2,288.00",Frome Private Hire Cars,201709,Environment and Place,Transport-Related Expenditure
07/12/2016,3851116,"11,090.00",Tracsis Traffic Data Ltd,201709,Commissioning Capital,Capital Expenditure
07/12/2016,3851116,"2,218.00",Tracsis Traffic Data Ltd,201709,Commissioning Capital,Suspense Accounts
07/12/2016,3851117,448,Safety Reflectives Ltd,201709,Environment and Place,Supplies & Services
07/12/2016,3851120,"2,503.60",Alliance In Partnership,201709,Schools,Supplies & Services
07/12/2016,3851121,893.2,Alliance In Partnership,201709,Schools,Supplies & Services
07/12/2016,3851122,"3,368.70",Alliance In Partnership,201709,Schools,Supplies & Services
07/12/2016,3851124,"1,122.00",Frome Private Hire Cars,201709,Environment and Place,Transport-Related Expenditure
07/12/2016,3851125,605.55,Alliance In Partnership,201709,Schools,Supplies & Services
07/12/2016,3851132,728.2,Shropshire Council,201709,Schools,Supplies & Services
07/12/2016,3851133,"1,980.00",JMC Monmouth Ltd,201709,Learning Disabilities,Transport-Related Expenditure
07/12/2016,3851134,"2,160.01",JMC Monmouth Ltd,201709,Learning Disabilities,Transport-Related Expenditure
07/12/2016,3851135,"2,039.40",Shropshire Council,201709,Schools,Supplies & Services
07/12/2016,3851136,765.6,Shropshire Council,201709,Schools,Supplies & Services
07/12/2016,3851137,"8,918.00",Hopton Building Services Ltd,201709,Housing & Independent Living Capital,Capital Expenditure
07/12/2016,3851140,"16,280.00",Slyspirit,201709,Growth,Supplies & Services
07/12/2016,3851142,894,Simon's Taxis,201709,Learning Disabilities,Transport-Related Expenditure
07/12/2016,3851144,"1,100.00",Minibus Services,201709,Learning Disabilities,Transport-Related Expenditure
07/12/2016,3851145,880,REDACTED,201709,Learning Disabilities,Transport-Related Expenditure
07/12/2016,3851147,"3,190.00",Dukes Travel Ltd,201709,Environment and Place,Transport-Related Expenditure
07/12/2016,3851148,"1,760.00",Dukes Travel Ltd,201709,Environment and Place,Transport-Related Expenditure
07/12/2016,3851149,"3,432.00",H & H Motors,201709,Environment and Place,Transport-Related Expenditure
07/12/2016,3851150,"3,498.00",H & H Motors,201709,Environment and Place,Transport-Related Expenditure
07/12/2016,3851151,"2,750.00",H & H Motors,201709,Environment and Place,Transport-Related Expenditure
07/12/2016,3851152,"3,498.02",H & H Motors,201709,Environment and Place,Transport-Related Expenditure
07/12/2016,3851153,"10,541.66",Crossroads Care-Forest Of Dean & Hfds,201709,Education and Commissioning,Third Party Payments
07/12/2016,3851154,"6,468.46",Sargeants Brothers Ltd,201709,Environment and Place,Third Party Payments
07/12/2016,3851156,914.47,Mastercraft Cycles,201709,Environment and Place,Supplies & Services
07/12/2016,3851168,"3,315.08",Worcestershire County Council,201709,Corporate,Employees
07/12/2016,3851174,"3,686.79",Bespoke Cleaning Services,201709,Schools,Premises-Related Expenditure
07/12/2016,3851175,723.69,Bespoke Cleaning Services,201709,Schools,Premises-Related Expenditure
07/12/2016,3851176,"1,052.76",Bespoke Cleaning Services,201709,Schools,Premises-Related Expenditure
07/12/2016,3851180,"4,318.50",J & W Kostorz Ltd,201709,Housing & Independent Living Capital,Capital Expenditure
09/12/2016,3851181,"13,630.00",Slyspirit,201709,Commissioning Capital,Capital Expenditure
14/12/2016,3851182,"17,136.88",DRM (Bromyard) Ltd,201709,Environment and Place,Third Party Payments
07/12/2016,3851188,463.5,Oxford University Press,201709,Schools,Supplies & Services
07/12/2016,3851190,"2,475.00",Rich Analysts Ltd,201709,Schools,Supplies & Services
07/12/2016,3851196,"1,186.80",Halo Leisure Services Ltd,201709,Schools,Premises-Related Expenditure
07/12/2016,3851208,550,Le Club Francais,201709,Schools,Supplies & Services
07/12/2016,3851211,460.49,Yorkshire Purchasing,201709,Schools,Supplies & Services
09/12/2016,3851225,"2,200.00",REDACTED,201709,Communities,Supplies & Services
09/12/2016,3851226,"1,352.75",Metric Group Ltd,201709,Environment and Place,Supplies & Services
09/12/2016,3851228,"1,195.25",Metric Group Ltd,201709,Environment and Place,Supplies & Services
09/12/2016,3851229,"1,195.25",Metric Group Ltd,201709,Environment and Place,Supplies & Services
09/12/2016,3851231,848.75,Metric Group Ltd,201709,Environment and Place,Supplies & Services
09/12/2016,3851233,738,Tupsley Whitehouse Project,201709,Environment and Place,Supplies & Services
09/12/2016,3851242,440,Sargeants Brothers Ltd,201709,Schools,Supplies & Services
09/12/2016,3851243,420,Sargeants Brothers Ltd,201709,Schools,Transport-Related Expenditure
09/12/2016,3851249,"3,214.35",Alliance In Partnership,201709,Schools,Supplies & Services
09/12/2016,3851251,540.81,Boss,201709,Schools,Supplies & Services
09/12/2016,3851258,892.24,Alliance In Partnership,201709,Schools,Supplies & Services
09/12/2016,3851264,"4,430.00",REDACTED,201709,Schools,Premises-Related Expenditure
09/12/2016,3851269,600,Edwards Tree Services Ltd,201709,Schools,Premises-Related Expenditure
09/12/2016,3851273,519,T F Corfield Liquidator of ABC Print (Hfd) Ltd,201709,Environment and Place,Supplies & Services
09/12/2016,3851284,"1,822.50",Primecare,201709,Transformation and safeguarding,Third Party Payments
09/12/2016,3851285,535,Hereford Integrated Behaviour Outreach Service,201709,Education and Commissioning,Transfer Payments
09/12/2016,3851286,"1,070.00",Hereford Integrated Behaviour Outreach Service,201709,Education and Commissioning,Transfer Payments
09/12/2016,3851287,"1,605.00",Hereford Integrated Behaviour Outreach Service,201709,Education and Commissioning,Transfer Payments
09/12/2016,3851288,535,Hereford Integrated Behaviour Outreach Service,201709,Education and Commissioning,Transfer Payments
09/12/2016,3851289,535,Hereford Integrated Behaviour Outreach Service,201709,Education and Commissioning,Transfer Payments
09/12/2016,3851291,"1,529.53",Software Box Ltd,201709,Schools,Supplies & Services
14/12/2016,3851292,"16,986.18",Orange plc (Airtime),201709,Resources,Supplies & Services
09/12/2016,3851293,"3,360.00",The Houghton Project,201709,Education and Commissioning,Supplies & Services
09/12/2016,3851294,956.75,REDACTED,201709,Schools,Premises-Related Expenditure
09/12/2016,3851295,749.88,Twinkl Ltd,201709,Schools,Supplies & Services
08/12/2016,3851302,"238,529.96",Whitecross@Stepnell Ltd,201709,Education and Commissioning,Premises-Related Expenditure
09/12/2016,3851303,452.9,REDACTED,201709,Adults Operations,Supplies & Services
09/12/2016,3851308,"1,715.99",Ashfords LLP,201709,Communities,Supplies & Services
09/12/2016,3851314,"2,195.00",Cummins Allison Ltd,201709,Environment and Place,Supplies & Services
14/12/2016,3851316,"4,420.00",NEPRO Limited,201709,Directors,Third Party Payments
09/12/2016,3851320,"2,458.00",Edutech Solutions Ltd,201709,Schools,Supplies & Services
14/12/2016,3851328,"1,346.80",Yorkshire Purchasing,201709,Schools,Supplies & Services
09/12/2016,3851336,519.82,Marlbrook Collaboration,201709,Schools,Supplies & Services
14/12/2016,3851337,"3,447.00",S & P Roofing Contractors,201709,Schools,Premises-Related Expenditure
09/12/2016,3851338,"3,960.00",Superstars/Sports Stars Ltd,201709,Schools,Supplies & Services
09/12/2016,3851347,"3,682.00",B & B Services Ltd,201709,Housing & Independent Living Capital,Capital Expenditure
09/12/2016,3851348,"1,852,155.05",Balfour Beatty Living Places Ltd,201709,Holding Codes,Holding Codes
09/12/2016,3851355,738.33,REDACTED,201709,Schools,Premises-Related Expenditure
14/12/2016,3851359,781.04,H Carson Ltd  (DAY211),201709,Public Health,Supplies & Services
08/12/2016,3851363,"1,083.00",REDACTED,201709,Environment and Place,Supplies & Services
09/12/2016,3851365,837.9,Play And Learn Nurseries Ltd,201709,Education and Commissioning,Transfer Payments
09/12/2016,3851374,"1,070.00",Ace Safes (UK) Ltd,201709,Resources,Supplies & Services
09/12/2016,3851378,"1,324.30",Lugwardine Primary Academy,201709,Central Childrens Directorate Costs,Support Services
09/12/2016,3851384,"5,512.00",Fairfield High School (Academy),201709,Education and Commissioning,Supplies & Services
09/12/2016,3851390,"1,000.00",REDACTED,201709,Communities,Supplies & Services
09/12/2016,3851409,650.1,REDACTED,201709,Schools,Supplies & Services
09/12/2016,3851411,"5,307.75",Yeomans Travel Ltd,201709,Growth,Supplies & Services
09/12/2016,3851412,568.5,The Courtyard Trust,201709,Schools,Supplies & Services
09/12/2016,3851418,"4,876.20",D & D Network Services Ltd,201709,Schools,Supplies & Services
09/12/2016,3851421,603.56,Metalliform Holdings Limited,201709,Schools,Premises-Related Expenditure
09/12/2016,3851424,"44,275.00",H M Revenue & Customs,201709,Children & Young People Capital,Capital Expenditure
09/12/2016,3851429,833.8,REDACTED,201709,Schools,Supplies & Services
09/12/2016,3851438,420,MBMASOSO Ltd,201709,Mental Health,Supplies & Services
09/12/2016,3851440,"1,065.63",REDACTED,201709,Schools,Premises-Related Expenditure
09/12/2016,3851441,420,MBMASOSO Ltd,201709,Mental Health,Supplies & Services
14/12/2016,3851442,"4,446.20",Mrs M J Thomson (The Iron Rice Bowl),201709,Schools,Supplies & Services
09/12/2016,3851445,712,A4 Office Products Ltd,201709,Schools,Premises-Related Expenditure
14/12/2016,3851452,680.11,REDACTED,201709,Schools,Supplies & Services
09/12/2016,3851458,"2,592.00",Alliance In Partnership,201709,Schools,Supplies & Services
09/12/2016,3851459,"2,043.25",Halo Leisure Services Ltd,201709,Communities,Third Party Payments
09/12/2016,3851468,540,REDACTED,201709,Schools,Supplies & Services
14/12/2016,3851473,632.1,Yorkshire Purchasing,201709,Schools,Supplies & Services
14/12/2016,3851474,535.55,PHS Group Plc,201709,Environment and Place,Third Party Payments
09/12/2016,3851476,"2,970.00",REDACTED,201709,Environment and Place,Transport-Related Expenditure
09/12/2016,3851480,730.83,DigiPrint Graphics Ltd,201709,Schools,Supplies & Services
09/12/2016,3851481,"2,640.00",REDACTED,201709,Environment and Place,Transport-Related Expenditure
09/12/2016,3851489,687.4,REDACTED,201709,Schools,Premises-Related Expenditure
14/12/2016,3851492,"4,433.00",Mrs M J Thomson (The Iron Rice Bowl),201709,Schools,Supplies & Services
14/12/2016,3851493,534.6,Mrs M J Thomson (The Iron Rice Bowl),201709,Schools,Supplies & Services
09/12/2016,3851494,"2,639.99",JMC Monmouth Ltd,201709,Environment and Place,Transport-Related Expenditure
09/12/2016,3851495,"1,100.00",JMC Monmouth Ltd,201709,Environment and Place,Transport-Related Expenditure
09/12/2016,3851499,"2,089.99",JMC Monmouth Ltd,201709,Environment and Place,Transport-Related Expenditure
09/12/2016,3851500,"2,639.99",JMC Monmouth Ltd,201709,Environment and Place,Transport-Related Expenditure
09/12/2016,3851501,500,Puwertec,201709,Environment and Place,Supplies & Services
09/12/2016,3851503,"2,478.30",I & S Coaches,201709,Environment and Place,Transport-Related Expenditure
09/12/2016,3851504,"13,552.00",JMC Monmouth Ltd,201709,Environment and Place,Transport-Related Expenditure
14/12/2016,3851506,486,REDACTED,201709,Environment and Place,Transport-Related Expenditure
09/12/2016,3851508,500,REDACTED,201709,Adults Operations,Supplies & Services
09/12/2016,3851514,909,Access Independent Ltd,201709,Communities,Supplies & Services
14/12/2016,3851515,"1,224.20",Northgate Public Services (UK) Ltd,201709,Communities,Supplies & Services
14/12/2016,3851516,"1,095.75",Alliance In Partnership,201709,Schools,Supplies & Services
14/12/2016,3851544,670.8,Halo Leisure Services Ltd,201709,Schools,Premises-Related Expenditure
14/12/2016,3851546,"1,481.00",Welsh Newton & Llanrothal G.P.C.,201709,Environment and Place,Third Party Payments
09/12/2016,3851553,"2,090.00",Nestor Associates Ltd,201709,Growth Capital,Capital Expenditure
09/12/2016,3851554,"7,750.00",McKie Consulting Limited,201709,Environment and Place,Supplies & Services
09/12/2016,3851555,"1,585.44",TPG Disable Aids Ltd,201709,Housing & Independent Living Capital,Capital Expenditure
09/12/2016,3851556,"1,630.00",Eclipse Access Solutions Ltd,201709,Housing & Independent Living Capital,Capital Expenditure
09/12/2016,3851557,"3,376.50",Dolphin Lifts Midlands Ltd,201709,Housing & Independent Living Capital,Capital Expenditure
09/12/2016,3851563,565,REDACTED,201709,Schools,Premises-Related Expenditure
09/12/2016,3851568,749,Teachers2parents Ltd,201709,Schools,Supplies & Services
09/12/2016,3851582,464.4,Halo Leisure Services Ltd,201709,Schools,Premises-Related Expenditure
09/12/2016,3851584,539.98,Owen Fuels,201709,Schools,Premises-Related Expenditure
09/12/2016,3851587,535,S M Stanley Builders Ltd,201709,Schools,Premises-Related Expenditure
09/12/2016,3851592,"1,096.00",Provide Home Solutions Ltd,201709,Schools,Premises-Related Expenditure
,3851595,"1,520.00",Integral UK Ltd,201709,Schools,Premises-Related Expenditure
14/12/2016,3851609,715.16,REDACTED,201709,Safeguarding and Family Support,Supplies & Services
14/12/2016,3851612,532.85,REDACTED,201709,Safeguarding and Family Support,Supplies & Services
14/12/2016,3851615,"1,210.00",The Wilkes Partnership Solicitors,201709,Communities,Supplies & Services
14/12/2016,3851616,"2,887.69",Parkeon,201709,Environment and Place,Supplies & Services
14/12/2016,3851618,440,Rugby Tots Herefordshire,201709,Schools,Supplies & Services
14/12/2016,3851623,"2,152.64",REDACTED,201709,Communities,Supplies & Services
14/12/2016,3851625,"1,117.19",REDACTED,201709,Growth,Third Party Payments
14/12/2016,3851626,"3,457.00",JMP Consultants Ltd,201709,Growth,Supplies & Services
14/12/2016,3851627,"6,910.40",Herefordshire Rural Hub CIC,201709,Communities,Supplies & Services
14/12/2016,3851630,940.1,ECHO,201709,Education and Commissioning,Supplies & Services
14/12/2016,3851631,"3,444.00",ECHO,201709,Education and Commissioning,Supplies & Services
14/12/2016,3851640,"56,250.22",Interserve FS (UK) Ltd,201709,Holding Codes,Holding Codes
16/12/2016,3851648,802.83,Mark 1 Corporate Clothing,201709,Communities,Supplies & Services
16/12/2016,3851658,"1,354.17",REDACTED,201709,Central Childrens Directorate Costs,Support Services
14/12/2016,3851659,"20,000.00",Lady Hawkins School (Academy),201709,Children & Young People Capital,Capital Income
14/12/2016,3851660,"1,671.90",Alliance In Partnership,201709,Schools,Supplies & Services
14/12/2016,3851661,"2,940.75",Alliance In Partnership,201709,Schools,Supplies & Services
16/12/2016,3851666,428.5,REDACTED,201709,Communities,Supplies & Services
14/12/2016,3851675,440,George Youngs Coaches Ltd (Factor A/C),201709,Schools,Transport-Related Expenditure
14/12/2016,3851678,650,Daisy Bogg Consultancy Ltd,201709,Adults Operations,Employees
14/12/2016,3851680,763.56,3P Learning Limited,201709,Schools,Supplies & Services
14/12/2016,3851692,"1,964.00",Alliance In Partnership,201709,Schools,Supplies & Services
14/12/2016,3851694,"5,000.00",REDACTED,201709,Communities,Supplies & Services
14/12/2016,3851700,475.07,Complete Office Solutions (UK) Ltd,201709,Resources,Supplies & Services
21/12/2016,3851713,659.49,REDACTED,201709,Adults Operations,Premises-Related Expenditure
14/12/2016,3851715,600,The Guardian News & Media Ltd,201709,Education and Commissioning,Employees
14/12/2016,3851717,897.21,REDACTED,201709,Schools,Premises-Related Expenditure
14/12/2016,3851721,"1,087.50",REDACTED,201709,Schools,Premises-Related Expenditure
14/12/2016,3851723,"69,753.00",Speller Metcalfe Malvern Ltd,201709,Communities Capital,Capital Expenditure
14/12/2016,3851725,640.75,Halo Leisure Services Ltd,201709,Schools,Premises-Related Expenditure
16/12/2016,3851728,627,Forest Of Dean Gymnastics Fitness Centre,201709,Schools,Premises-Related Expenditure
14/12/2016,3851735,"4,074.75",Alliance In Partnership,201709,Schools,Supplies & Services
14/12/2016,3851737,"1,200.00",Skycap Ltd T/A Skeye,201709,Environment and Place,Third Party Payments
14/12/2016,3851739,"4,100.00",J & W Kostorz Ltd,201709,Housing & Independent Living Capital,Capital Expenditure
14/12/2016,3851740,"1,860.00",W D Decking Ltd,201709,Housing & Independent Living Capital,Capital Expenditure
14/12/2016,3851745,"1,064.00",The Key Support Services Ltd,201709,Schools,Employees
14/12/2016,3851756,440,REDACTED,201709,Schools,Supplies & Services
14/12/2016,3851764,"1,027.50",Clarion Defence (UK) Ltd,201709,Growth,Supplies & Services
14/12/2016,3851766,"2,458.00",Edutech Solutions Ltd,201709,Schools,Support Services
14/12/2016,3851767,"3,106.40",Alliance In Partnership,201709,Schools,Supplies & Services
14/12/2016,3851770,"1,095.25",REDACTED,201709,Schools,Premises-Related Expenditure
14/12/2016,3851774,780,Radbournes Ltd,201709,Schools,Premises-Related Expenditure
14/12/2016,3851783,"1,625.00",Trustees Of Great Western Railway,201709,Resources,Premises-Related Expenditure
14/12/2016,3851787,893.43,Midshire Business Systems Ltd,201709,Schools,Supplies & Services
14/12/2016,3851790,988.74,Bespoke Cleaning Services,201709,Schools,Premises-Related Expenditure
14/12/2016,3851795,441,Tucasi Limited,201709,Schools,Supplies & Services
16/12/2016,3851796,"2,000.00",REDACTED,201709,Communities,Supplies & Services
14/12/2016,3851802,831,Superstars/Sports Stars Ltd,201709,Schools,Supplies & Services
14/12/2016,3851806,655.56,T S Matthews & Son (Bartonsham Farm Dairies),201709,Schools,Supplies & Services
14/12/2016,3851809,715,Cauliflower Cards Ltd,201709,Schools,Supplies & Services
14/12/2016,3851813,"254,675.54",Shaw Healthcare (Herefordshire) Ltd,201709,Physical Disabilities,Third Party Payments
14/12/2016,3851814,"6,919.64",Shaw Healthcare (Herefordshire) Ltd,201709,Physical Disabilities,Third Party Payments
14/12/2016,3851815,"4,785.85",Shaw Healthcare (Herefordshire) Ltd,201709,Physical Disabilities,Third Party Payments
14/12/2016,3851816,"57,407.35",Shaw Healthcare (Herefordshire) Ltd,201709,Physical Disabilities,Third Party Payments
16/12/2016,3851826,701,Past-Lincs,201709,Communities,Supplies & Services
16/12/2016,3851827,"1,660.00",Curious Works (Catherine Stallybrass),201709,Communities,Supplies & Services
14/12/2016,3851834,419.94,West Mercia Supplies (The Consortium),201709,Schools,Supplies & Services
14/12/2016,3851836,485.9,REDACTED,201709,Schools,Supplies & Services
14/12/2016,3851838,884.38,REDACTED,201709,Schools,Premises-Related Expenditure
14/12/2016,3851839,519.87,Peterchurch Parochial Church Council,201709,Environment and Place,Premises-Related Expenditure
14/12/2016,3851840,"1,363.60",REDACTED,201709,Adults Operations,Supplies & Services
14/12/2016,3851844,727.36,3C Payment (UK) Ltd,201709,Environment and Place,Premises-Related Expenditure
14/12/2016,3851852,"1,778.99",Findel Education Limited,201709,Schools,Supplies & Services
14/12/2016,3851855,480,S M Stanley Builders Ltd,201709,Schools,Premises-Related Expenditure
16/12/2016,3851881,"8,778.00",REDACTED,201709,Environment and Place,Transport-Related Expenditure
14/12/2016,3851882,"1,902.08",Totalpoint Ltd,201709,Resources,Premises-Related Expenditure
14/12/2016,3851883,"9,801.53",Shropshire Council,201709,Environment and Place,Third Party Payments
14/12/2016,3851884,"17,347.18",DRM (Bromyard) Ltd,201709,Environment and Place,Third Party Payments
14/12/2016,3851886,736.27,Veolia Transport T/A Astons Coaches,201709,Environment and Place,Third Party Payments
14/12/2016,3851887,790.9,Bowyer's Coaches,201709,Environment and Place,Third Party Payments
14/12/2016,3851890,"1,968.99",Bromyard Community Transport Ltd,201709,Environment and Place,Transport-Related Expenditure
14/12/2016,3851899,450,SLS School Improvement Ltd,201709,Schools,Supplies & Services
14/12/2016,3851902,"4,924.40",Insight Direct (UK) Ltd,201709,Resources Capital,Capital Expenditure
14/12/2016,3851909,"8,500.00",Colomon Properties Ltd,201709,Resources,Premises-Related Expenditure
14/12/2016,3851910,"13,210.72",Lugg Valley Primrose Travel Ltd,201709,Environment and Place,Third Party Payments
14/12/2016,3851911,787.5,Sargeants Brothers Ltd,201709,Environment and Place,Third Party Payments
14/12/2016,3851912,595,H & H Motors,201709,Environment and Place,Third Party Payments
14/12/2016,3851913,"12,875.06",Stagecoach Services Limited,201709,Environment and Place,Third Party Payments
14/12/2016,3851915,950,P W Jones (Hereford) Ltd,201709,Schools,Supplies & Services
14/12/2016,3851917,"1,241.63",Bromyard Community Transport Ltd,201709,Environment and Place,Transport-Related Expenditure
16/12/2016,3851919,"3,650.10",Black Pepper (Ledbury) Ltd,201709,Schools,Supplies & Services
21/12/2016,3851921,736.3,The Contact People,201709,Resources,Supplies & Services
14/12/2016,3851922,680.64,Halarose Ltd,201709,Communities,Supplies & Services
14/12/2016,3851938,905,PJB Merchants Ltd,201709,Schools,Supplies & Services
14/12/2016,3851943,"2,171.25",Alliance In Partnership,201709,Schools,Supplies & Services
16/12/2016,3851944,"1,297.20",Black Pepper (Ledbury) Ltd,201709,Schools,Supplies & Services
14/12/2016,3851947,"5,000.00",West Mercia  Womens Aid,201709,Growth,Transfer Payments
14/12/2016,3851951,530.56,Hoople Ltd,201709,Resources,Employees
14/12/2016,3851953,"9,885.00",Hoople Ltd,201709,Safeguarding and Family Support,Supplies & Services
14/12/2016,3851957,976.5,MS & EM Patrick Ltd,201709,Environment and Place,Supplies & Services
14/12/2016,3851967,"29,706.66",West Mercia  Womens Aid,201709,Commissioning Adults,Supplies & Services
14/12/2016,3851969,652.34,REDACTED,201709,Growth,Supplies & Services
21/12/2016,3851970,512.65,British Gas Business,201709,Environment and Place,Premises-Related Expenditure
14/12/2016,3851974,"1,081.84",Clearview Cleaning Services,201709,Schools,Premises-Related Expenditure
14/12/2016,3851979,"1,368.40",J P Catering,201709,Schools,Supplies & Services
16/12/2016,3851981,"8,000.00",Yorkshire Purchasing,201709,Resources,Supplies & Services
14/12/2016,3851991,"1,889.28",Euclid Limited,201709,Environment and Place,Third Party Payments
14/12/2016,3851992,"1,092.00",Northern Link Traffic Data Consultancy Ltd,201709,Commissioning Capital,Capital Expenditure
14/12/2016,3851993,"50,094.57",Yeomans Travel Ltd,201709,Environment and Place,Third Party Payments
16/12/2016,3851994,939.5,Chartered Trading Standards Institute,201709,Environment and Place,Supplies & Services
14/12/2016,3852003,"4,400.00",Buchanans Coaches,201709,Environment and Place,Transport-Related Expenditure
14/12/2016,3852004,"2,052.60",CVA Ledbury & District,201709,Environment and Place,Transport-Related Expenditure
14/12/2016,3852005,"2,916.00",Yeomans Travel Ltd,201709,Environment and Place,Transport-Related Expenditure
14/12/2016,3852007,476,The Key Support Services Ltd,201709,Schools,Employees
14/12/2016,3852009,"5,515.59",REDACTED,201709,Communities,Supplies & Services
14/12/2016,3852009,"2,206.25",REDACTED,201709,Communities,Suspense Accounts
14/12/2016,3852011,750,Cambium,201709,Schools,Supplies & Services
14/12/2016,3852020,700,The Messaging Centre Ltd,201709,Environment and Place,Supplies & Services
16/12/2016,3852021,726.99,REDACTED,201709,Education and Commissioning,Supplies & Services
14/12/2016,3852030,"38,867.50",Elizabeth Fitzroy Support,201709,Learning Disabilities,Third Party Payments
14/12/2016,3852031,"13,750.00",Elizabeth Fitzroy Support,201709,Learning Disabilities,Third Party Payments
14/12/2016,3852032,"38,867.50",Elizabeth Fitzroy Support,201709,Learning Disabilities,Third Party Payments
14/12/2016,3852033,"26,516.00",Elizabeth Fitzroy Support,201709,Learning Disabilities,Third Party Payments
14/12/2016,3852034,"13,750.00",Elizabeth Fitzroy Support,201709,Learning Disabilities,Third Party Payments
14/12/2016,3852035,"15,000.00",Onside Independent Advocacy,201709,Commissioning Adults,Third Party Payments
16/12/2016,3852036,500,Business Angel Ltd,201709,Communities,Supplies & Services
14/12/2016,3852039,"18,150.00",Penna Plc,201709,Resources,Employees
16/12/2016,3852040,"2,516.25",HCT Construction Consultants Ltd,201709,Growth,Supplies & Services
14/12/2016,3852041,640.2,J P Catering,201709,Schools,Supplies & Services
14/12/2016,3852042,"2,210.00",Burges Salmon Solicitors,201709,Holding Codes,Suspense Accounts
16/12/2016,3852045,481.35,REDACTED,201709,Environment and Place,Supplies & Services
16/12/2016,3852046,604.59,REDACTED,201709,Environment and Place,Supplies & Services
14/12/2016,3852048,"9,833.00",Millhouse Residential Care Home,201709,Learning Disabilities,Third Party Payments
16/12/2016,3852053,482.96,NPOWER,201709,Environment and Place,Premises-Related Expenditure
16/12/2016,3852058,"5,900.00",REDACTED,201709,Communities,Supplies & Services
16/12/2016,3852059,600,REDACTED,201709,Communities,Supplies & Services
14/12/2016,3852063,850,Air Quality Consultants,201709,Environment and Place,Third Party Payments
16/12/2016,3852066,"1,869.57",CVA Ledbury & District,201709,Environment and Place,Transport-Related Expenditure
14/12/2016,3852067,"1,320.00",CVA Ledbury & District,201709,Environment and Place,Transport-Related Expenditure
14/12/2016,3852068,"3,079.98",Buchanans Coaches,201709,Environment and Place,Transport-Related Expenditure
16/12/2016,3852073,"1,115.80",Herefordshire Vision Links,201709,Commissioning Adults,Supplies & Services
16/12/2016,3852074,812.42,Herefordshire Vision Links,201709,Commissioning Adults,Supplies & Services
16/12/2016,3852075,480.07,Herefordshire Vision Links,201709,Commissioning Adults,Supplies & Services
16/12/2016,3852076,940.32,Herefordshire Vision Links,201709,Commissioning Adults,Supplies & Services
16/12/2016,3852078,"3,848.68",Herefordshire Vision Links,201709,Commissioning Adults,Supplies & Services
16/12/2016,3852079,"3,909.96",Herefordshire Vision Links,201709,Commissioning Adults,Supplies & Services
16/12/2016,3852080,507,Hereford Cathedral School,201709,Education and Commissioning,Support Services
16/12/2016,3852081,493.3,Hereford Cathedral School,201709,Education and Commissioning,Support Services
14/12/2016,3852082,440.59,John Masefield High School (Academy),201709,Education and Commissioning,Transfer Payments
14/12/2016,3852083,720.2,John Masefield High School (Academy),201709,Education and Commissioning,Employees
16/12/2016,3852086,"4,583.33",Marches Family Network,201709,Education and Commissioning,Third Party Payments
14/12/2016,3852087,"1,235.00",Westcom Network Solutions Ltd,201709,Resources Capital,Capital Expenditure
16/12/2016,3852088,790.55,Herefordshire Vision Links,201709,Commissioning Adults,Supplies & Services
16/12/2016,3852089,"1,979.13",Herefordshire Vision Links,201709,Commissioning Adults,Supplies & Services
16/12/2016,3852090,901.64,Herefordshire Vision Links,201709,Commissioning Adults,Supplies & Services
14/12/2016,3852093,"1,100.00",P W Jones (Hereford) Ltd,201709,Schools,Transport-Related Expenditure
14/12/2016,3852096,"17,533.33",West Mercia Homes Ltd,201709,Commissioning Adults,Supplies & Services
14/12/2016,3852098,"80,478.50",2Gether NHS Foundation Trust,201709,Commissioning Adults,Third Party Payments
14/12/2016,3852100,"16,659.00",Ategi Ltd,201709,Commissioning Adults,Third Party Payments
16/12/2016,3852102,"4,833.33",Festival Housing Group,201709,Physical Disabilities,Third Party Payments
14/12/2016,3852103,768.4,Lugg Valley Primrose Travel Ltd,201709,Environment and Place,Third Party Payments
14/12/2016,3852108,"4,305.00",Hopton Building Services Ltd,201709,Housing & Independent Living Capital,Capital Expenditure
14/12/2016,3852110,"3,611.00",REDACTED,201709,Housing & Independent Living Capital,Capital Expenditure
14/12/2016,3852111,"3,041.00",MVF Builders Ltd,201709,Housing & Independent Living Capital,Capital Expenditure
14/12/2016,3852113,640,Phillips & Leslie Education Consultants,201709,Schools,Supplies & Services
14/12/2016,3852117,"1,660.00",Edutech Solutions Ltd,201709,Schools,Supplies & Services
16/12/2016,3852118,475,ICCM,201709,Environment and Place,Supplies & Services
14/12/2016,3852119,"2,107.00",The Cart Shed Charity,201709,Education and Commissioning,Supplies & Services
21/12/2016,3852120,691.14,Storm Technologies Ltd,201709,Safeguarding and Family Support,Supplies & Services
14/12/2016,3852124,459.8,Mrs M J Thomson (The Iron Rice Bowl),201709,Schools,Supplies & Services
16/12/2016,3852125,827,Npower,201709,Schools,Premises-Related Expenditure
14/12/2016,3852132,"40,393.15",Yeomans Travel Ltd,201709,Environment and Place,Transport-Related Expenditure
16/12/2016,3852133,999.97,Tradebe  Gwent Ltd,201709,Environment and Place,Supplies & Services
16/12/2016,3852138,925,REDACTED,201709,Schools,Supplies & Services
14/12/2016,3852142,"121,454.15",Kier Construction - Central Div of Kier Construction Ltd,201709,Resources Capital,Capital Expenditure
21/12/2016,3852155,"4,698.32",Welsh Water,201709,Environment and Place,Premises-Related Expenditure
14/12/2016,3852158,611.37,Neopost Finance Ltd,201709,Resources,Supplies & Services
16/12/2016,3852159,"4,252.50",Pontrilas Developments Ltd,201709,Resources,Premises-Related Expenditure
16/12/2016,3852161,"5,424.30",Pontrilas Developments Ltd,201709,Resources,Premises-Related Expenditure
16/12/2016,3852162,"33,075.00",Pontrilas Developments Ltd,201709,Resources,Premises-Related Expenditure
16/12/2016,3852163,"10,164.00",Pontrilas Developments Ltd,201709,Resources,Premises-Related Expenditure
14/12/2016,3852164,750,District Surveyors Association Ltd (Labc),201709,Environment and Place,Employees
14/12/2016,3852168,"3,148.20",Mrs M J Thomson (The Iron Rice Bowl),201709,Schools,Supplies & Services
14/12/2016,3852169,722.25,Alliance In Partnership,201709,Schools,Supplies & Services
14/12/2016,3852170,"2,533.50",Alliance In Partnership,201709,Schools,Supplies & Services
14/12/2016,3852171,"1,109.35",Alliance In Partnership,201709,Schools,Supplies & Services
14/12/2016,3852174,"1,050.00",B & H Cars,201709,Learning Disabilities,Transport-Related Expenditure
16/12/2016,3852177,935,Ace Coaches & Travel,201709,Environment and Place,Transport-Related Expenditure
14/12/2016,3852178,"2,640.00",Blue Line Taxis,201709,Environment and Place,Transport-Related Expenditure
16/12/2016,3852179,"1,913.01",Blue Line Taxis,201709,Environment and Place,Transport-Related Expenditure
14/12/2016,3852181,515,Lord Combustion Services Ltd,201709,Schools,Premises-Related Expenditure
14/12/2016,3852186,532,Hoople Ltd,201709,Schools,Support Services
14/12/2016,3852195,"1,260.40",Wigmore High School (Academy),201709,Schools,Supplies & Services
16/12/2016,3852202,735.71,NPower Business  Gas,201709,Environment and Place,Premises-Related Expenditure
14/12/2016,3852203,995,Buchanans Coaches,201709,Schools,Transport-Related Expenditure
14/12/2016,3852205,"1,934.00",Blue Line Taxis,201709,Environment and Place,Transport-Related Expenditure
14/12/2016,3852207,"1,980.00",Blue Line Taxis,201709,Environment and Place,Transport-Related Expenditure
14/12/2016,3852208,572,Blue Line Taxis,201709,Environment and Place,Transport-Related Expenditure
14/12/2016,3852209,752.42,Allstar Business Solutions Ltd (Arval),201709,Environment and Place,Transport-Related Expenditure
16/12/2016,3852210,"7,382.45",Arriva Trains Wales Ltd,201709,Environment and Place,Transport-Related Expenditure
14/12/2016,3852211,638,Blue Line Taxis,201709,Environment and Place,Transport-Related Expenditure
14/12/2016,3852212,"13,350.00",CAE Technology Services Ltd,201709,Resources Capital,Capital Expenditure
14/12/2016,3852213,"14,426.81",CAE Technology Services Ltd,201709,Resources Capital,Capital Expenditure
14/12/2016,3852217,"1,391.50",Wigmore High School (Academy),201709,Schools,Supplies & Services
14/12/2016,3852219,"2,100.00",Red Castle Training,201709,Education and Commissioning,Supplies & Services
14/12/2016,3852222,665,REDACTED,201709,Schools,Supplies & Services
14/12/2016,3852226,754,Tennis Hereford,201709,Schools,Supplies & Services
14/12/2016,3852231,875,ECHO,201709,Education and Commissioning,Supplies & Services
14/12/2016,3852232,"12,810.14",CAE Technology Services Ltd,201709,Resources Capital,Capital Expenditure
14/12/2016,3852233,676.5,NWN Media Ltd,201709,Environment and Place,Supplies & Services
14/12/2016,3852236,"31,101.00",Grant Thornton,201709,Resources,Supplies & Services
16/12/2016,3852240,"1,000.00",REDACTED,201709,Safeguarding and Family Support,Supplies & Services
16/12/2016,3852241,561,REDACTED,201709,Safeguarding and Family Support,Supplies & Services
14/12/2016,3852243,"1,000.00",MBL Seminars Ltd,201709,Communities,Supplies & Services
14/12/2016,3852262,536.67,ParentPay Limited,201709,Schools,Supplies & Services
14/12/2016,3852270,450,SLS School Improvement Ltd,201709,Schools,Supplies & Services
14/12/2016,3852282,456.05,REDACTED,201709,Education and Commissioning,Supplies & Services
14/12/2016,3852283,"2,814.00",The Nationwide Community Learning Partnership (NCLP),201709,Education and Commissioning,Supplies & Services
14/12/2016,3852284,700,REDACTED,201709,Adults Operations,Supplies & Services
16/12/2016,3852286,500,REDACTED,201709,Communities,Transfer Payments
16/12/2016,3852288,"1,108.80",J P Catering,201709,Schools,Supplies & Services
14/12/2016,3852289,"40,750.00",Worcestershire County Council ,201709,Corporate,Employees
16/12/2016,3852301,750,Sandwell Metropolitan Borough Council,201709,Communities,Supplies & Services
16/12/2016,3852303,550,BCS Learning & Development Ltd,201709,Schools,Supplies & Services
16/12/2016,3852313,"20,728.75",Onside Independent Advocacy,201709,Commissioning Adults,Third Party Payments
16/12/2016,3852314,"1,820.25",Alliance In Partnership,201709,Schools,Supplies & Services
16/12/2016,3852318,"9,798.50",Alliance In Partnership,201709,Schools,Supplies & Services
16/12/2016,3852320,"3,218.50",Total Hygiene Ltd,201709,Housing & Independent Living Capital,Capital Expenditure
16/12/2016,3852323,"1,131.38",XMA Ltd,201709,Environment and Place,Supplies & Services
16/12/2016,3852323,"1,131.38",XMA Ltd,201709,Resources,Supplies & Services
16/12/2016,3852329,731.77,West Mercia Supplies (The Consortium),201709,Schools,Supplies & Services
16/12/2016,3852347,"2,572.50",Orleton School Meals,201709,Schools,Supplies & Services
16/12/2016,3852362,"4,903.00",D & D Network Services Ltd,201709,Schools,Supplies & Services
16/12/2016,3852366,"6,099.23",Herefordshire Carers Support Ltd,201709,Public Health,Transfer Payments
16/12/2016,3852375,"1,205.55",School Pupil Tracker Ltd,201709,Schools,Supplies & Services
16/12/2016,3852385,630,Stephanie Austwick Ltd,201709,Schools,Employees
16/12/2016,3852386,630,Stephanie Austwick Ltd,201709,Schools,Employees
16/12/2016,3852388,528,The Key Support Services Ltd,201709,Schools,Supplies & Services
16/12/2016,3852389,476,The Key Support Services Ltd,201709,Schools,Supplies & Services
04/01/2017,3852390,"1,912.99",Regus Management (UK)Ltd (Direct Debit),201709,Growth,Premises-Related Expenditure
16/12/2016,3852391,"1,512.00",Bemrose Booth,201709,Environment and Place,Suspense Accounts
16/12/2016,3852393,942.79,Clearview Cleaning Services,201709,Schools,Premises-Related Expenditure
16/12/2016,3852398,458,Boss,201709,Schools,Supplies & Services
05/01/2017,3852407,"4,818.20",Allpay Ltd  (Direct Debit only),201709,Resources,Supplies & Services
16/12/2016,3852411,533.42,Clearview Cleaning Services,201709,Schools,Premises-Related Expenditure
16/12/2016,3852418,"8,189.29",Shaw Healthcare Ltd,201709,Physical Disabilities,Employees
16/12/2016,3852419,"8,189.29",Shaw Healthcare Ltd,201709,Physical Disabilities,Employees
16/12/2016,3852421,"13,083.33",Stonham,201709,Commissioning Adults,Supplies & Services
16/12/2016,3852422,"23,166.66",Stonham,201709,Commissioning Adults,Supplies & Services
16/12/2016,3852423,"2,599.80",Herefordshire Housing Ltd,201709,Transformation and safeguarding,Supplies & Services
,3852430,721.27,G4S Cash Service (Direct Debit),201709,Resources,Third Party Payments
22/12/2016,3852432,"4,934.49",Capita Business Services Ltd (Direct Debit),201709,Resources,Supplies & Services
16/12/2016,3852447,"1,200.00",REDACTED,201709,Safeguarding and Family Support,Supplies & Services
16/12/2016,3852448,"7,272.00",Herefordshire Headway,201709,Commissioning Adults,Supplies & Services
16/12/2016,3852449,"1,820.00",Russell & Co Solicitors,201709,Holding Codes,Suspense Accounts
16/12/2016,3852454,"1,628.00",J P Catering,201709,Schools,Supplies & Services
16/12/2016,3852456,426.99,Welsh Water,201709,Schools,Premises-Related Expenditure
16/12/2016,3852458,"1,440.00",Babcock training Limited (Education Services),201709,Schools,Employees
16/12/2016,3852462,760,Greenfield Creations Ltd,201709,Environment and Place,Supplies & Services
16/12/2016,3852466,646.78,West Mercia Supplies (The Consortium),201709,Schools,Supplies & Services
16/12/2016,3852467,670.8,Halo Leisure Services Ltd,201709,Schools,Premises-Related Expenditure
16/12/2016,3852481,"2,735.86",Moorfield House Surgery,201709,Environment and Place,Supplies & Services
16/12/2016,3852485,"1,000.00",Wigmore High School (Academy),201709,Schools,Support Services
16/12/2016,3852488,556.04,Npower,201709,Schools,Premises-Related Expenditure
16/12/2016,3852492,"3,193.18",Aspire Living Ltd,201709,Public Health,Transfer Payments
16/12/2016,3852498,"7,540.00",BCS Learning & Development Ltd,201709,Schools,Supplies & Services
16/12/2016,3852507,529.63,Calor Gas Ltd,201709,Schools,Premises-Related Expenditure
16/12/2016,3852509,865.31,Edge Renewables Ltd,201709,Schools,Premises-Related Expenditure
16/12/2016,3852510,"14,673.73",Nottingham Rehab Ltd,201709,Transformation and safeguarding,Supplies & Services
16/12/2016,3852511,"481,700.54",REDACTED,201709,Commissioning Capital,Capital Expenditure
16/12/2016,3852530,"1,865.34",Leo Pest Control Environmental Services Ltd,201709,Physical Disabilities,Third Party Payments
16/12/2016,3852531,"1,101.24",The Danwood Group Limited,201709,Schools,Supplies & Services
16/12/2016,3852545,547.56,Ulverscroft Large Print Books Ltd,201709,Communities,Supplies & Services
16/12/2016,3852549,471.99,REDACTED,201709,Communities,Supplies & Services
16/12/2016,3852552,"2,503.00",St Mary's R C High School,201709,Education and Commissioning,Support Services
16/12/2016,3852553,"3,122.00",St Mary's R C High School,201709,Education and Commissioning,Support Services
16/12/2016,3852554,"1,677.00",Riverside Primary School - HCC,201709,Education and Commissioning,Support Services
16/12/2016,3852555,"1,026.00",St Mary's R C High School,201709,Education and Commissioning,Support Services
16/12/2016,3852556,"1,888.00",St Pauls Church of England Primary School,201709,Education and Commissioning,Support Services
16/12/2016,3852557,"1,797.00",St Mary's R C High School,201709,Education and Commissioning,Support Services
16/12/2016,3852558,"2,463.40",Mrs M J Thomson (The Iron Rice Bowl),201709,Schools,Supplies & Services
16/12/2016,3852560,"1,254.80",Welsh Water (DWR CYMRU CYF CIS ONLY),201709,Growth Capital,Capital Expenditure
16/12/2016,3852563,"2,727.40",Lady Hawkins School Caterers,201709,Schools,Supplies & Services
16/12/2016,3852565,673.27,PHS Group Plc,201709,Schools,Supplies & Services
16/12/2016,3852566,717.73,Calor Gas Ltd,201709,Schools,Premises-Related Expenditure
16/12/2016,3852568,500,Wigmore High School (Academy),201709,Schools,Supplies & Services
21/12/2016,3852570,"2,294.00",Widgit Software,201709,Schools,Supplies & Services
21/12/2016,3852572,604.59,REDACTED,201709,Environment and Place,Supplies & Services
16/12/2016,3852574,"1,145.00",PTFS Ltd,201709,Environment and Place,Supplies & Services
16/12/2016,3852576,"2,475.37",Restore plc,201709,Communities,Supplies & Services
21/12/2016,3852581,"1,053.46",Facultatieve Technologies Limited,201709,Resources,Premises-Related Expenditure
21/12/2016,3852582,738.3,Facultatieve Technologies Limited,201709,Resources,Premises-Related Expenditure
21/12/2016,3852583,654.82,Facultatieve Technologies Limited,201709,Resources,Premises-Related Expenditure
21/12/2016,3852592,"4,727.40",REDACTED,201709,Communities,Supplies & Services
21/12/2016,3852593,"1,575.00",REDACTED,201709,Communities,Supplies & Services
21/12/2016,3852594,425,REDACTED,201709,Communities,Supplies & Services
16/12/2016,3852596,450,SLS School Improvement Ltd,201709,Schools,Supplies & Services
21/12/2016,3852611,"1,636.78",West Mercia Supplies (The Consortium),201709,Schools,Supplies & Services
16/12/2016,3852617,732.94,West Mercia Supplies (The Consortium),201709,Schools,Supplies & Services
16/12/2016,3852618,"8,616.00",Open Sky Productions Ltd,201709,Communities,Supplies & Services
21/12/2016,3852622,"5,164.90",Hulse Yazdi Professional Services,201709,Communities,Supplies & Services
16/12/2016,3852624,574,Edutech Solutions Ltd,201709,Schools,Supplies & Services
16/12/2016,3852634,"1,000.00",Capita Business Services Ltd,201709,Schools,Supplies & Services
21/12/2016,3852635,"3,990.20",Hulse Yazdi Professional Services,201709,Communities,Supplies & Services
21/12/2016,3852640,810,REDACTED,201709,Schools,Supplies & Services
21/12/2016,3852643,532.08,REDACTED,201709,Schools,Premises-Related Expenditure
21/12/2016,3852645,700,Sports Plus Scheme Ltd,201709,Schools,Supplies & Services
21/12/2016,3852646,707,REDACTED,201709,Schools,Supplies & Services
21/12/2016,3852656,672.6,REDACTED,201709,Schools,Supplies & Services
21/12/2016,3852657,581.7,REDACTED,201709,Adults Operations,Supplies & Services
21/12/2016,3852662,468.4,SF Software Ltd,201709,Schools,Supplies & Services
21/12/2016,3852663,662,Elevate Education,201709,Schools,Supplies & Services
,3852696,"14,623.77",Speller Metcalfe Malvern Ltd,201709,Resources Capital,Capital Expenditure
21/12/2016,3852698,920,Wealden Leisure Ltd T/A Freedom Leisure,201709,Schools,Premises-Related Expenditure
21/12/2016,3852710,"1,026.00",REDACTED,201709,Environment and Place,Transport-Related Expenditure
21/12/2016,3852711,"40,147.20",Stagecoach Services Limited,201709,Environment and Place,Transport-Related Expenditure
21/12/2016,3852713,540,Blue Line Taxis,201709,Environment and Place,Transport-Related Expenditure
21/12/2016,3852726,968.97,Owen Fuels,201709,Schools,Premises-Related Expenditure
21/12/2016,3852727,"2,267.62",LLangrove CE Academy,201709,Schools,Supplies & Services
21/12/2016,3852737,"2,503.31",West Mercia Energy,201709,Schools,Premises-Related Expenditure
21/12/2016,3852738,456.79,West Mercia Energy,201709,Schools,Premises-Related Expenditure
21/12/2016,3852741,"2,000.00",Wigmore High School (Academy),201709,Schools,Support Services
21/12/2016,3852758,"1,040.00",Blue Line Taxis,201709,Environment and Place,Transport-Related Expenditure
21/12/2016,3852759,"1,362.78",West Mercia Energy,201709,Schools,Premises-Related Expenditure
21/12/2016,3852774,"2,030.00",University of Warwick (Student Finance),201709,Resources,Employees
21/12/2016,3852777,"3,515.00",Edutech Solutions Ltd,201709,Schools,Supplies & Services
21/12/2016,3852788,"1,325.35",Discovery Education Europe Ltd,201709,Schools,Supplies & Services
21/12/2016,3852799,736.3,The Contact People,201709,Resources,Supplies & Services
21/12/2016,3852802,425.98,West Mercia Supplies (The Consortium),201709,Schools,Supplies & Services
21/12/2016,3852811,"37,225.00",Campbell & Kennedy Ltd,201709,Commissioning Capital,Capital Expenditure
21/12/2016,3852812,702,Blue Line Taxis,201709,Environment and Place,Transport-Related Expenditure
21/12/2016,3852813,665.47,MPLC Ltd,201709,Education and Commissioning,Supplies & Services
21/12/2016,3852814,"2,200.00",Hoople Ltd,201709,Education and Commissioning,Third Party Payments
21/12/2016,3852815,"1,216.00",B & H Cars,201709,Learning Disabilities,Transport-Related Expenditure
21/12/2016,3852816,"1,292.00",B & H Cars,201709,Learning Disabilities,Transport-Related Expenditure
21/12/2016,3852817,"1,140.00",B & H Cars,201709,Learning Disabilities,Transport-Related Expenditure
21/12/2016,3852819,624,Blue Line Taxis,201709,Environment and Place,Transport-Related Expenditure
21/12/2016,3852831,518,Blue Line Taxis,201709,Environment and Place,Transport-Related Expenditure
21/12/2016,3852835,574.7,HVOSS,201709,Learning Disabilities,Transport-Related Expenditure
21/12/2016,3852836,"1,296,000.00",Hoople Ltd,201709,Resources,Third Party Payments
21/12/2016,3852837,570,Hereford Integrated Behaviour Outreach Service,201709,Schools,Supplies & Services
21/12/2016,3852857,"8,178.80",Alliance In Partnership,201709,Schools,Supplies & Services
21/12/2016,3852860,"17,424.03",Turner & Co (Rent A/C),201709,Resources,Premises-Related Expenditure
21/12/2016,3852861,"1,889.49",Turner & Co (Rent A/C),201709,Resources,Premises-Related Expenditure
21/12/2016,3852862,"2,861.10",Turner & Co (Rent A/C),201709,Resources,Premises-Related Expenditure
21/12/2016,3852866,"105,606.09",Nottingham Rehab Ltd,201709,Commissioning Adults,Supplies & Services
21/12/2016,3852866,"11,724.90",Nottingham Rehab Ltd,201709,Commissioning Adults,Transport-Related Expenditure
21/12/2016,3852871,"1,470.98",West Mercia Supplies (The Consortium),201709,Schools,Supplies & Services
21/12/2016,3852874,615.11,West Mercia Supplies (The Consortium),201709,Schools,Supplies & Services
21/12/2016,3852880,"1,085.00",CLA (Country Land & Business Association),201709,Resources,Supplies & Services
21/12/2016,3852881,535,Holmer C of E Academy,201709,Education and Commissioning,Support Services
21/12/2016,3852882,"2,140.00",Builth Wells High School PCC,201709,Education and Commissioning,Support Services
21/12/2016,3852883,"2,817.00",Earl Mortimer College & Sixth Form HCC,201709,Education and Commissioning,Support Services
21/12/2016,3852884,"1,320.00",REDACTED,201709,Environment and Place,Transport-Related Expenditure
21/12/2016,3852885,"1,320.00",REDACTED,201709,Environment and Place,Transport-Related Expenditure
21/12/2016,3852892,670.8,Halo Leisure Services Ltd,201709,Schools,Premises-Related Expenditure
21/12/2016,3852894,"1,080.00",REDACTED,201709,Schools,Supplies & Services
21/12/2016,3852897,500,Wigmore High School (Academy),201709,Schools,Employees
21/12/2016,3852899,586.28,West Mercia Supplies (The Consortium),201709,Schools,Supplies & Services
21/12/2016,3852901,"1,110.00",Alliance In Partnership,201709,Schools,Supplies & Services
21/12/2016,3852902,680,Alliance In Partnership,201709,Schools,Supplies & Services
21/12/2016,3852906,717.7,PEAC (UK) Ltd,201709,Schools,Supplies & Services
21/12/2016,3852911,"3,667.20",Shropshire Council,201709,Schools,Supplies & Services
21/12/2016,3852916,"2,420.00",Blue Line Taxis,201709,Environment and Place,Transport-Related Expenditure
21/12/2016,3852917,"1,760.00",Blue Line Taxis,201709,Environment and Place,Transport-Related Expenditure
21/12/2016,3852918,"4,180.00",Blue Line Taxis,201709,Environment and Place,Transport-Related Expenditure
21/12/2016,3852919,"2,890.00",Blue Line Taxis,201709,Environment and Place,Transport-Related Expenditure
21/12/2016,3852920,"1,440.00",Blue Line Taxis,201709,Environment and Place,Transport-Related Expenditure
21/12/2016,3852921,504,Blue Line Taxis,201709,Physical Disabilities,Transport-Related Expenditure
21/12/2016,3852927,"1,050.00",Blue Line Taxis,201709,Environment and Place,Transport-Related Expenditure
21/12/2016,3852928,"1,232.00",Blue Line Taxis,201709,Learning Disabilities,Transport-Related Expenditure
21/12/2016,3852929,880,High Town Radio Taxi Group,201709,Environment and Place,Transport-Related Expenditure
21/12/2016,3852930,"1,330.00",Blue Line Taxis,201709,Environment and Place,Transport-Related Expenditure
21/12/2016,3852937,425,REDACTED,201709,Safeguarding and Family Support,Supplies & Services
21/12/2016,3852938,425,REDACTED,201709,Safeguarding and Family Support,Supplies & Services
21/12/2016,3852944,472.64,Brandon Trust,201709,Physical Disabilities,Third Party Payments
21/12/2016,3852947,442.53,Brandon Trust,201709,Mental Health,Third Party Payments
21/12/2016,3852948,663,Halo Leisure Services Ltd,201709,Schools,Premises-Related Expenditure
21/12/2016,3852949,"14,217.24",Brandon Trust,201709,Mental Health,Third Party Payments
21/12/2016,3852951,"42,813.91",Brandon Trust,201709,Mental Health,Third Party Payments
21/12/2016,3852953,"11,710.85",Brandon Trust,201709,Mental Health,Third Party Payments
21/12/2016,3852955,"14,464.15",Brandon Trust,201709,Mental Health,Third Party Payments
21/12/2016,3852961,"11,898.36",Brandon Trust,201709,Mental Health,Third Party Payments
21/12/2016,3852963,"35,064.27",Brandon Trust,201709,Mental Health,Third Party Payments
21/12/2016,3852964,"4,826.58",Brandon Trust,201709,Mental Health,Third Party Payments
21/12/2016,3852965,"9,007.28",Brandon Trust,201709,Mental Health,Third Party Payments
21/12/2016,3852967,"41,552.33",Brandon Trust,201709,Mental Health,Third Party Payments
21/12/2016,3852969,540,REDACTED,201709,Safeguarding and Family Support,Transport-Related Expenditure
21/12/2016,3852970,"2,310.00",Blue Line Taxis,201709,Environment and Place,Transport-Related Expenditure
21/12/2016,3852971,511.38,Highground Maintenance Limited,201709,Schools,Premises-Related Expenditure
21/12/2016,3852972,"1,584.00",Blue Line Taxis,201709,Environment and Place,Transport-Related Expenditure
21/12/2016,3852973,"3,520.00",Blue Line Taxis,201709,Environment and Place,Transport-Related Expenditure
21/12/2016,3852975,"2,420.00",Blue Line Taxis,201709,Environment and Place,Transport-Related Expenditure
21/12/2016,3852976,"1,875.48",Highground Maintenance Limited,201709,Schools,Premises-Related Expenditure
21/12/2016,3852977,"2,200.00",Blue Line Taxis,201709,Environment and Place,Transport-Related Expenditure
21/12/2016,3852978,"3,519.98",Blue Line Taxis,201709,Environment and Place,Transport-Related Expenditure
21/12/2016,3852981,"2,241.00",Blue Line Taxis,201709,Environment and Place,Transport-Related Expenditure
21/12/2016,3852985,902,Blue Line Taxis,201709,Environment and Place,Transport-Related Expenditure
21/12/2016,3852988,504,Blue Line Taxis,201709,Learning Disabilities,Transport-Related Expenditure
21/12/2016,3852990,780,Blue Line Taxis,201709,Environment and Place,Transport-Related Expenditure
21/12/2016,3852992,"1,210.00",The Wilkes Partnership Solicitors,201709,Communities,Supplies & Services
21/12/2016,3852993,"3,710.00",The Wilkes Partnership Solicitors,201709,Communities,Supplies & Services
22/12/2016,3852995,450,REDACTED,201709,Communities,Supplies & Services
21/12/2016,3852997,660,J P Catering,201709,Schools,Supplies & Services
21/12/2016,3852998,825,Celia Butler Education Management & Consultancy,201709,Education and Commissioning,Supplies & Services
21/12/2016,3853005,"3,353.80",Longtown Group Parish Council,201709,Environment and Place,Third Party Payments
21/12/2016,3853008,475,Yeomans Travel Ltd,201709,Schools,Transport-Related Expenditure
21/12/2016,3853011,701.1,Birmingham Ormiston Academy Theatre Ltd,201709,Schools,Supplies & Services
21/12/2016,3853013,"3,741.60",Orleton School Meals,201709,Schools,Supplies & Services
21/12/2016,3853016,"6,887.20",Dell Corporation Ltd,201709,Schools,Supplies & Services
21/12/2016,3853021,424.75,Paperstation Ltd,201709,Schools,Supplies & Services
21/12/2016,3853025,"29,852.06",S M Stanley Builders Ltd,201709,Schools,Premises-Related Expenditure
21/12/2016,3853026,"6,143.95",Education Property Partnership Ltd,201709,Schools,Premises-Related Expenditure
21/12/2016,3853030,"35,000.00",Herefordshire Housing Ltd,201709,Commissioning Adults,Third Party Payments
21/12/2016,3853033,471.46,Christmas Cards For Schools Limited,201709,Schools,Supplies & Services
21/12/2016,3853034,"25,000.00",West Midlands Combined Authority,201709,Directors,Supplies & Services
21/12/2016,3853035,"1,000.00",Ecoteric Ltd,201709,Growth,Supplies & Services
21/12/2016,3853036,"1,000.00",Ecoteric Ltd,201709,Growth,Supplies & Services
21/12/2016,3853037,"3,525.00",D&d Building Servs Consulting Engineers Ltd,201709,Growth Capital,Capital Expenditure
21/12/2016,3853038,"1,530.00",Keysoft Solutions Ltd,201709,Environment and Place,Supplies & Services
21/12/2016,3853040,"37,211.00",Sargeants Brothers Ltd,201709,Environment and Place,Third Party Payments
21/12/2016,3853041,914.47,Mastercraft Cycles,201709,Environment and Place,Supplies & Services
21/12/2016,3853042,"6,910.83",Enigma CCTV Ltd,201709,Environment and Place,Supplies & Services
21/12/2016,3853043,"1,925.40",Cobalt Telephone Technologies Ltd,201709,Environment and Place,Premises-Related Expenditure
21/12/2016,3853045,"2,727.28",Life Cycle UK,201709,Environment and Place,Supplies & Services
21/12/2016,3853048,"17,102.61",Stagecoach Services Limited,201709,Environment and Place,Transport-Related Expenditure
21/12/2016,3853049,707.5,REDACTED,201709,Environment and Place,Transfer Payments
21/12/2016,3853050,500,Designumbrella,201709,Environment and Place,Supplies & Services
21/12/2016,3853053,"15,546.00",DRM (Bromyard) Ltd,201709,Environment and Place,Third Party Payments
21/12/2016,3853055,"55,407.00",Lugg Valley Primrose Travel Ltd,201709,Environment and Place,Third Party Payments
21/12/2016,3853056,"67,499.00",Yeomans Travel Ltd,201709,Environment and Place,Third Party Payments
21/12/2016,3853057,"12,343.00",Veolia Transport T/A Astons Coaches,201709,Environment and Place,Third Party Payments
21/12/2016,3853058,"7,131.00",George Youngs Coaches Ltd,201709,Environment and Place,Third Party Payments
21/12/2016,3853059,616.5,Lugg Valley Primrose Travel Ltd,201709,Environment and Place,Third Party Payments
21/12/2016,3853060,"9,536.14",Veolia Transport T/A Astons Coaches,201709,Environment and Place,Third Party Payments
21/12/2016,3853061,929.83,Lugg Valley Primrose Travel Ltd,201709,Environment and Place,Third Party Payments
21/12/2016,3853062,"6,405.10",Yeomans Travel Ltd,201709,Environment and Place,Third Party Payments
21/12/2016,3853063,"5,673.60",Yeomans Travel Ltd,201709,Environment and Place,Third Party Payments
21/12/2016,3853064,646.75,Yeomans Travel Ltd,201709,Environment and Place,Third Party Payments
21/12/2016,3853065,720.75,Veolia Transport T/A Astons Coaches,201709,Environment and Place,Third Party Payments
21/12/2016,3853066,510,Avonside Taxis,201709,Environment and Place,Transport-Related Expenditure
21/12/2016,3853067,920,Avonside Taxis,201709,Environment and Place,Transport-Related Expenditure
21/12/2016,3853069,600,Bearwood Associates Ltd,201709,Growth,Supplies & Services
21/12/2016,3853070,"1,000.00",Neopost Ltd,201709,Resources,Supplies & Services
21/12/2016,3853071,"4,791.31",Mastercraft Cycles,201709,Environment and Place,Supplies & Services
22/12/2016,3853074,"1,950.00",The Caldecott Foundation,201709,Education and Commissioning,Third Party Payments
21/12/2016,3853082,"1,133.10",School Pupil Tracker Ltd,201709,Schools,Supplies & Services
21/12/2016,3853083,825,Oxford University Press,201709,Schools,Employees
21/12/2016,3853084,825,Oxford University Press,201709,Schools,Employees
21/12/2016,3853090,810,George Youngs Coaches Ltd (Factor A/C),201709,Schools,Transport-Related Expenditure
21/12/2016,3853098,500,Neopost Ltd,201709,Resources,Supplies & Services
21/12/2016,3853112,500,St Denis Church,201709,Environment and Place,Supplies & Services
21/12/2016,3853113,"1,212.76",REDACTED,201709,Environment and Place,Supplies & Services
21/12/2016,3853115,"1,700.60",REDACTED,201709,Schools,Supplies & Services
21/12/2016,3853120,"1,603.80",Mrs M J Thomson (The Iron Rice Bowl),201709,Schools,Supplies & Services
21/12/2016,3853125,790,The Key Support Services Ltd,201709,Schools,Supplies & Services
21/12/2016,3853142,439.17,YHA Cardiff,201709,Schools,Supplies & Services
21/12/2016,3853154,"2,255,565.84",Mercia Waste Management,201709,Commissioning Capital,Capital Expenditure
21/12/2016,3853157,678.13,Veolia ES Onyx Ltd,201709,Schools,Third Party Payments
21/12/2016,3853167,880,Assessments & Learning,201709,Schools,Supplies & Services
21/12/2016,3853183,"1,906.00",Complete Security & Fire Protection Ltd,201709,Schools,Supplies & Services
21/12/2016,3853186,"1,656.00",Complete Security & Fire Protection Ltd,201709,Schools,Supplies & Services
21/12/2016,3853190,624.15,Brookes Brothers (London) Ltd,201709,Schools,Supplies & Services
21/12/2016,3853193,"3,500.00",Hopton Building Services Ltd,201709,Housing & Independent Living Capital,Capital Expenditure
21/12/2016,3853196,"1,167.60",Boss,201709,Schools,Supplies & Services
21/12/2016,3853197,"1,170.40",J P Catering,201709,Schools,Supplies & Services
21/12/2016,3853201,807.75,Alliance In Partnership,201709,Schools,Supplies & Services
21/12/2016,3853215,504.31,Boss,201709,Schools,Supplies & Services
21/12/2016,3853218,"1,284.80",The Wilkes Partnership Solicitors,201709,Communities,Supplies & Services
21/12/2016,3853234,"323,392.42",Fcc Environment Services (uk) Ltd,201709,Environment and Place,Third Party Payments
21/12/2016,3853241,"2,769.80",Shropshire Council,201709,Schools,Supplies & Services
21/12/2016,3853243,570,Smiths Motors Ledbury Ltd,201709,Schools,Transport-Related Expenditure
21/12/2016,3853245,500,Wigmore High School (Academy),201709,Schools,Supplies & Services
21/12/2016,3853275,976.67,Meininger Limited,201709,Schools,Supplies & Services
21/12/2016,3853276,"1,204.50",REDACTED,201709,Environment and Place,Supplies & Services
21/12/2016,3853281,600,Leominster Taxis & Travel,201709,Environment and Place,Transport-Related Expenditure
21/12/2016,3853282,"2,520.00",P W Jones (Hereford) Ltd,201709,Environment and Place,Transport-Related Expenditure
21/12/2016,3853283,"2,034.01",P W Jones (Hereford) Ltd,201709,Environment and Place,Transport-Related Expenditure
21/12/2016,3853284,"2,010.60",P W Jones (Hereford) Ltd,201709,Environment and Place,Transport-Related Expenditure
21/12/2016,3853285,"2,125.00",Hereford Pedicabs Ltd,201709,Communities,Supplies & Services
21/12/2016,3853287,990,P W Jones (Hereford) Ltd,201709,Environment and Place,Transport-Related Expenditure
21/12/2016,3853288,"6,054.34",Odgers Berndtson T/A Berwick Partners,201709,Resources,Suspense Accounts
21/12/2016,3853290,"5,141.00",Vaisala Ltd,201709,Environment and Place,Supplies & Services
21/12/2016,3853296,575.25,Direct Ed Ltd,201709,Schools,Supplies & Services
21/12/2016,3853298,"3,527.55",REDACTED,201709,Safeguarding and Family Support,Supplies & Services
21/12/2016,3853299,"17,500.00",REDACTED,201709,Safeguarding and Family Support,Supplies & Services
21/12/2016,3853306,650,P W Jones (Hereford) Ltd,201709,Schools,Supplies & Services
22/12/2016,3853324,442.17,Oxford University Press,201709,Schools,Supplies & Services
22/12/2016,3853325,"1,000.00",Wigmore High School (Academy),201709,Schools,Employees
21/12/2016,3853326,720,D & D Network Services Ltd,201709,Schools,Support Services
21/12/2016,3853327,"1,000.00",Stem Learning Limited,201709,Schools,Employees
21/12/2016,3853334,459.74,NJ Electrical Services Ltd,201709,Schools,Premises-Related Expenditure
21/12/2016,3853339,517.91,Viking Direct,201709,Schools,Supplies & Services
21/12/2016,3853340,"3,346.00",Hereford Mobility Centre,201709,Housing & Independent Living Capital,Capital Expenditure
21/12/2016,3853341,500,Wigmore High School (Academy),201709,Schools,Employees
21/12/2016,3853342,"3,798.40",REDACTED,201709,Housing & Independent Living Capital,Capital Expenditure
21/12/2016,3853358,"2,736.00",J & W Kostorz Ltd,201709,Housing & Independent Living Capital,Capital Expenditure
21/12/2016,3853359,"3,154.25",Level Access Bathrooms,201709,Housing & Independent Living Capital,Capital Expenditure
21/12/2016,3853361,"4,488.00",Hopton Building Services Ltd,201709,Housing & Independent Living Capital,Capital Expenditure
21/12/2016,3853362,"3,308.00",MVF Builders Ltd,201709,Housing & Independent Living Capital,Capital Expenditure
21/12/2016,3853369,427.86,REDACTED,201709,Schools,Supplies & Services
21/12/2016,3853371,900,Hereford Integrated Behaviour Outreach Service,201709,Schools,Employees
21/12/2016,3853376,516.66,Optimus Education,201709,Schools,Supplies & Services
21/12/2016,3853379,"2,489.00",Albion Computers PLC,201709,Schools,Supplies & Services
21/12/2016,3853380,"5,295.00",Albion Computers PLC,201709,Schools,Supplies & Services
21/12/2016,3853381,462,Albion Computers PLC,201709,Schools,Supplies & Services
21/12/2016,3853382,"2,093.00",Boss,201709,Resources,Premises-Related Expenditure
21/12/2016,3853388,790,Hobgoblin Theatre Company Ltd,201709,Schools,Supplies & Services
21/12/2016,3853395,447.5,Forward Products,201709,Schools,Supplies & Services
21/12/2016,3853401,"76,600.00",Halo Leisure Services Ltd,201709,Resources Capital,Capital Expenditure
21/12/2016,3853402,"1,720.50",Dell Corporation Ltd,201709,Environment and Place,Supplies & Services
21/12/2016,3853434,420,MBMASOSO Ltd,201709,Mental Health,Supplies & Services
21/12/2016,3853435,420,MBMASOSO Ltd,201709,Mental Health,Supplies & Services
21/12/2016,3853436,420,MBMASOSO Ltd,201709,Mental Health,Supplies & Services
21/12/2016,3853439,"3,399.50",SRJ Plumbing & Heating,201709,Housing & Independent Living Capital,Capital Expenditure
21/12/2016,3853441,590,Mawley Oak Garages Ltd,201709,Schools,Supplies & Services
21/12/2016,3853460,"8,000.00",REDACTED,201709,Resources,Supplies & Services
22/12/2016,3853467,550,REDACTED,201709,Schools,Supplies & Services
22/12/2016,3853473,476.1,CF Roberts (Electrical Contractors) Plc,201709,Schools,Premises-Related Expenditure
22/12/2016,3853477,"5,304.00",B & B Services Ltd,201709,Housing & Independent Living Capital,Capital Expenditure
22/12/2016,3853485,425,REDACTED,201709,Safeguarding and Family Support,Supplies & Services
22/12/2016,3853491,"34,012.00",Hereford & Worc Fire & Rescue Service,201709,Consolidated Revenue Account,Supplies & Services
22/12/2016,3853502,"1,112.00",Superstars/Sports Stars Ltd,201709,Schools,Supplies & Services
22/12/2016,3853503,695,Superstars/Sports Stars Ltd,201709,Schools,Supplies & Services
22/12/2016,3853511,"1,284,956.00",West Mercia Police & Crime Commissioner,201709,Collection Fund,Collection Fund Accounts
04/01/2017,3853515,456.49,Bikold Ltd,201709,Schools,Supplies & Services
04/01/2017,3853519,432.38,Bikold Ltd,201709,Schools,Supplies & Services
04/01/2017,3853530,"2,250.00",REDACTED,201709,Adults Operations,Supplies & Services
04/01/2017,3853532,"1,327.00",REDACTED,201709,Communities,Third Party Payments
04/01/2017,3853533,500,REDACTED,201709,Communities,Third Party Payments
04/01/2017,3853537,"17,533.33",West Mercia Homes Ltd,201709,Commissioning Adults,Supplies & Services
04/01/2017,3853538,600,MAPLYN Care Services Ltd,201709,Adults Operations,Employees
04/01/2017,3853539,800,MAPLYN Care Services Ltd,201709,Adults Operations,Employees
04/01/2017,3853540,"49,368.75",West Mercia Police & Crime Commissioner,201709,Central Childrens Directorate Costs,Suspense Accounts
04/01/2017,3853545,"1,155.00",ECHO,201709,Education and Commissioning,Supplies & Services
04/01/2017,3853546,"1,155.00",ECHO,201709,Education and Commissioning,Supplies & Services
,3853549,523.59,ALS Life Sciences Ltd (Direct Debit),201709,Environment and Place,Supplies & Services
04/01/2017,3853550,"2,490.00",Abritas,201709,Commissioning Adults,Third Party Payments
04/01/2017,3853551,"9,380.16",Attain Health Management Services,201709,Transformation and safeguarding,Supplies & Services
04/01/2017,3853553,"1,068.75",Alliance In Partnership,201709,Schools,Supplies & Services
04/01/2017,3853558,490,Butterflies Child Counselling & Play Therapy,201709,Schools,Supplies & Services
,3853566,832.5,REDACTED,201709,Environment and Place,Supplies & Services
04/01/2017,3853567,"2,596.90",Salters Hill Charity  Ltd,201709,Public Health,Transfer Payments
04/01/2017,3853568,500,REDACTED,201709,Environment and Place,Supplies & Services
04/01/2017,3853569,"1,685.00",Active and Fun PE,201709,Schools,Supplies & Services
04/01/2017,3853599,563.32,Welsh Water,201709,Environment and Place,Premises-Related Expenditure
04/01/2017,3853603,764.31,Spring Housing Association Ltd,201709,Commissioning Adults,Premises-Related Expenditure
04/01/2017,3853604,882.08,Spring Housing Association Ltd,201709,Commissioning Adults,Premises-Related Expenditure
04/01/2017,3853605,964,Spring Housing Association Ltd,201709,Commissioning Adults,Premises-Related Expenditure
04/01/2017,3853606,771.07,Spring Housing Association Ltd,201709,Commissioning Adults,Premises-Related Expenditure
04/01/2017,3853607,832,Spring Housing Association Ltd,201709,Commissioning Adults,Premises-Related Expenditure
04/01/2017,3853608,795.52,Spring Housing Association Ltd,201709,Commissioning Adults,Premises-Related Expenditure
04/01/2017,3853609,565.01,Spring Housing Association Ltd,201709,Commissioning Adults,Premises-Related Expenditure
04/01/2017,3853610,687.02,Spring Housing Association Ltd,201709,Commissioning Adults,Premises-Related Expenditure
04/01/2017,3853611,755.5,Spring Housing Association Ltd,201709,Commissioning Adults,Premises-Related Expenditure
04/01/2017,3853612,958.89,Spring Housing Association Ltd,201709,Commissioning Adults,Premises-Related Expenditure
04/01/2017,3853613,"5,408.05",Alzheimer's Society,201709,Mental Health,Supplies & Services
04/01/2017,3853614,420,MBMASOSO Ltd,201709,Mental Health,Supplies & Services
04/01/2017,3853616,900,Venture Taxi Services Ltd,201709,Environment and Place,Transport-Related Expenditure
04/01/2017,3853617,510,Ace Coaches & Travel,201709,Environment and Place,Transport-Related Expenditure
04/01/2017,3853618,"1,392.00",Ace Coaches & Travel,201709,Environment and Place,Transport-Related Expenditure
04/01/2017,3853620,"13,829.76",George Youngs Coaches Ltd,201709,Environment and Place,Transport-Related Expenditure
04/01/2017,3853621,"1,936.00",REDACTED,201709,Environment and Place,Transport-Related Expenditure
04/01/2017,3853622,"3,146.00",M & J Travel,201709,Environment and Place,Transport-Related Expenditure
04/01/2017,3853623,"3,630.00",M & J Travel,201709,Environment and Place,Transport-Related Expenditure
04/01/2017,3853624,"2,196.00",Leominster Taxis & Travel,201709,Environment and Place,Transport-Related Expenditure
04/01/2017,3853625,"2,747.76",Yeomans Travel Ltd,201709,Environment and Place,Transport-Related Expenditure
04/01/2017,3853626,"1,620.00",REDACTED,201709,Environment and Place,Transport-Related Expenditure
04/01/2017,3853627,"1,680.00",Buchanans Coaches,201709,Environment and Place,Transport-Related Expenditure
04/01/2017,3853629,557.6,Shredpro,201709,Resources,Supplies & Services
04/01/2017,3853634,786.12,Allstar Business Solutions Ltd (Arval),201709,Environment and Place,Transport-Related Expenditure
04/01/2017,3853640,"1,560.00",REDACTED,201709,Adults Operations,Supplies & Services
04/01/2017,3853641,"1,600.00",REDACTED,201709,Adults Operations,Supplies & Services
04/01/2017,3853647,"8,862.00",Herdman Coaches Ltd,201709,Environment and Place,Transport-Related Expenditure
04/01/2017,3853648,"1,980.00",M & J Travel,201709,Environment and Place,Transport-Related Expenditure
04/01/2017,3853649,"1,716.00",M & J Travel,201709,Environment and Place,Transport-Related Expenditure
04/01/2017,3853650,"1,800.00",M&S Coaches Of Hereford Limited,201709,Environment and Place,Transport-Related Expenditure
04/01/2017,3853651,"1,656.00",M&S Coaches Of Hereford Limited,201709,Environment and Place,Transport-Related Expenditure
04/01/2017,3853652,"1,656.00",M&S Coaches Of Hereford Limited,201709,Environment and Place,Transport-Related Expenditure
04/01/2017,3853653,"1,800.00",M&S Coaches Of Hereford Limited,201709,Environment and Place,Transport-Related Expenditure
04/01/2017,3853654,"1,620.00",M&S Coaches Of Hereford Limited,201709,Environment and Place,Transport-Related Expenditure
04/01/2017,3853656,"2,040.00",M&S Coaches Of Hereford Limited,201709,Environment and Place,Transport-Related Expenditure
04/01/2017,3853657,"1,056.00",REDACTED,201709,Environment and Place,Transport-Related Expenditure
04/01/2017,3853658,"1,351.80",I & S Coaches,201709,Environment and Place,Transport-Related Expenditure
04/01/2017,3853659,"1,440.00",REDACTED,201709,Environment and Place,Transport-Related Expenditure
04/01/2017,3853660,960,Dukes Travel Ltd,201709,Environment and Place,Transport-Related Expenditure
04/01/2017,3853661,"1,740.00",Dukes Travel Ltd,201709,Environment and Place,Transport-Related Expenditure
04/01/2017,3853662,834,Leominster Taxis & Travel,201709,Environment and Place,Transport-Related Expenditure
04/01/2017,3853663,420,REDACTED,201709,Environment and Place,Transport-Related Expenditure
04/01/2017,3853665,"1,320.00",Leominster Taxis & Travel,201709,Environment and Place,Transport-Related Expenditure
04/01/2017,3853667,420,MBMASOSO Ltd,201709,Mental Health,Supplies & Services
,3853671,"1,320.00",The Best Taste Catering Services,201709,Communities,Supplies & Services
04/01/2017,3853674,710.5,REDACTED,201709,Safeguarding and Family Support,Supplies & Services
04/01/2017,3853675,750,REDACTED,201709,Environment and Place,Supplies & Services
04/01/2017,3853676,600,REDACTED,201709,Environment and Place,Supplies & Services
04/01/2017,3853677,"1,000.00",REDACTED,201709,Environment and Place,Supplies & Services
04/01/2017,3853680,"4,880.00",Hulse Yazdi Professional Services,201709,Communities,Supplies & Services
04/01/2017,3853685,"28,667.00",REDACTED,201709,Safeguarding and Family Support,Supplies & Services
04/01/2017,3853686,800,REDACTED,201709,Communities,Supplies & Services
04/01/2017,3853687,425,REDACTED,201709,Communities,Supplies & Services
04/01/2017,3853688,425,REDACTED,201709,Communities,Supplies & Services
04/01/2017,3853692,445,Ledbury Library Development Group,201709,Communities,Supplies & Services
04/01/2017,3853693,"1,504.80",Alliance In Partnership,201709,Schools,Supplies & Services
04/01/2017,3853694,458.01,Gompels Healthcare Ltd,201709,Schools,Premises-Related Expenditure
04/01/2017,3853696,"2,848.44",Alliance In Partnership,201709,Schools,Supplies & Services
04/01/2017,3853698,900,SLS School Improvement Ltd,201709,Schools,Employees
04/01/2017,3853704,"15,992.93",Warwickshire County Council,201709,Communities,Supplies & Services
04/01/2017,3853710,665,Create Development Ltd,201709,Schools,Supplies & Services
,3853715,508,REDACTED,201709,Schools,Supplies & Services
04/01/2017,3853718,"1,140.00",Learning Support Partnership Ltd,201709,Schools,Supplies & Services
04/01/2017,3853721,"4,582.00",Veale Wasbrough Visards,201709,Environment and Place,Supplies & Services
04/01/2017,3853722,"5,581.48",Veale Wasbrough Visards,201709,Environment and Place,Supplies & Services
04/01/2017,3853723,"3,883.00",Veale Wasbrough Visards,201709,Environment and Place,Supplies & Services
04/01/2017,3853724,"7,035.45",Veale Wasbrough Visards,201709,Environment and Place,Supplies & Services
04/01/2017,3853728,"12,247.00",Veale Wasbrough Visards,201709,Environment and Place,Supplies & Services
04/01/2017,3853729,"57,525.00",Veale Wasbrough Visards,201709,Environment and Place,Supplies & Services
04/01/2017,3853730,"7,847.00",Veale Wasbrough Visards,201709,Environment and Place,Supplies & Services
04/01/2017,3853742,464.9,Bikold Ltd,201709,Schools,Supplies & Services
04/01/2017,3853744,667.57,Bikold Ltd,201709,Schools,Supplies & Services
04/01/2017,3853746,474.77,Bikold Ltd,201709,Schools,Supplies & Services
04/01/2017,3853749,"6,420.00",Cinderford Artspace Ltd,201709,Environment and Place,Supplies & Services
04/01/2017,3853750,"1,114.00",The Rural Media Charity,201709,Environment and Place,Supplies & Services
04/01/2017,3853763,"1,134.00",REDACTED,201709,Environment and Place,Transport-Related Expenditure
04/01/2017,3853764,876,REDACTED,201709,Environment and Place,Transport-Related Expenditure
04/01/2017,3853768,"3,426.80",Stagecoach Services Limited,201709,Environment and Place,Third Party Payments
04/01/2017,3853773,922.8,Mastercraft Cycles,201709,Environment and Place,Supplies & Services
04/01/2017,3853780,960,Blue Line Taxis,201709,Environment and Place,Transport-Related Expenditure
04/01/2017,3853786,427.86,Critiqom,201709,Communities,Supplies & Services
04/01/2017,3853799,542.48,REDACTED,201709,Environment and Place,Supplies & Services
04/01/2017,3853800,"1,018.76",CVA Ledbury & District,201709,Environment and Place,Transport-Related Expenditure
04/01/2017,3853801,"1,119.60",CVA Ledbury & District,201709,Environment and Place,Transport-Related Expenditure
04/01/2017,3853802,720,CVA Ledbury & District,201709,Environment and Place,Transport-Related Expenditure
04/01/2017,3853805,810.01,Minibus Services,201709,Learning Disabilities,Transport-Related Expenditure
04/01/2017,3853807,"1,053.00",REDACTED,201709,Communities,Supplies & Services
04/01/2017,3853809,"2,137.50",Team Challenge Apps Limited,201709,Environment and Place,Supplies & Services
04/01/2017,3853810,910,Blue Line Taxis,201709,Environment and Place,Transport-Related Expenditure
04/01/2017,3853811,840,Simon's Taxis,201709,Environment and Place,Transport-Related Expenditure
04/01/2017,3853812,"1,368.00",Simon's Taxis,201709,Environment and Place,Transport-Related Expenditure
,3853819,"4,788.00",REDACTED,201709,Environment and Place,Transport-Related Expenditure
04/01/2017,3853823,"2,800.00",Buchanans Coaches,201709,Environment and Place,Transport-Related Expenditure
04/01/2017,3853824,"60,000.00",Worcestershire County Council,201709,Environment and Place,Supplies & Services
04/01/2017,3853825,"2,360.96",REDACTED,201709,Environment and Place,Transport-Related Expenditure
04/01/2017,3853826,"1,320.00",Blue Line Taxis,201709,Environment and Place,Transport-Related Expenditure
04/01/2017,3853827,864,Blue Line Taxis,201709,Environment and Place,Transport-Related Expenditure
04/01/2017,3853828,"1,560.00",Blue Line Taxis,201709,Environment and Place,Transport-Related Expenditure
04/01/2017,3853829,"1,260.00",Blue Line Taxis,201709,Environment and Place,Transport-Related Expenditure
04/01/2017,3853830,"2,280.00",Blue Line Taxis,201709,Environment and Place,Transport-Related Expenditure
04/01/2017,3853831,"1,920.00",Blue Line Taxis,201709,Environment and Place,Transport-Related Expenditure
04/01/2017,3853832,792,REDACTED,201709,Environment and Place,Transport-Related Expenditure
04/01/2017,3853836,960,Minibus Services,201709,Learning Disabilities,Transport-Related Expenditure
04/01/2017,3853837,986,REDACTED,201709,Environment and Place,Transport-Related Expenditure
04/01/2017,3853838,960,REDACTED,201709,Environment and Place,Transport-Related Expenditure
04/01/2017,3853839,"19,774.92",DRM (Bromyard) Ltd,201709,Environment and Place,Transport-Related Expenditure
04/01/2017,3853840,827.4,REDACTED,201709,Environment and Place,Transport-Related Expenditure
04/01/2017,3853841,750,Minibus Services,201709,Learning Disabilities,Transport-Related Expenditure
04/01/2017,3853842,"1,320.00",Blue Line Taxis,201709,Environment and Place,Transport-Related Expenditure
04/01/2017,3853843,"1,200.00",Blue Line Taxis,201709,Environment and Place,Transport-Related Expenditure
04/01/2017,3853844,"1,048.00",Blue Line Taxis,201709,Environment and Place,Transport-Related Expenditure
04/01/2017,3853845,"20,449.92",Lugg Valley Primrose Travel Ltd,201709,Environment and Place,Transport-Related Expenditure
04/01/2017,3853846,"1,920.00",Blue Line Taxis,201709,Environment and Place,Transport-Related Expenditure
04/01/2017,3853848,"22,605.92",Yeomans Travel Ltd,201709,Environment and Place,Transport-Related Expenditure
04/01/2017,3853849,"1,460.00",Blue Line Taxis,201709,Environment and Place,Transport-Related Expenditure
04/01/2017,3853851,"1,080.00",Blue Line Taxis,201709,Environment and Place,Transport-Related Expenditure
04/01/2017,3853852,"4,833.33",Festival Housing Group,201709,Physical Disabilities,Third Party Payments
04/01/2017,3853863,894.16,British Gas Business,201709,Environment and Place,Premises-Related Expenditure
04/01/2017,3853868,881.17,Watson Petroleum Limited,201709,Schools,Premises-Related Expenditure
04/01/2017,3853875,"12,537.10",The Brookfield School (Academy),201709,Children & Young People Capital,Capital Expenditure
04/01/2017,3853879,475,Yeomans Travel Ltd,201709,Schools,Transport-Related Expenditure
04/01/2017,3853881,"9,487.82",Forest Of Dean District Council,201709,Environment and Place,Support Services
04/01/2017,3853892,640,Wye Valley NHS Trust,201709,Environment and Place,Supplies & Services
04/01/2017,3853898,910,XMA Ltd,201709,Resources,Supplies & Services
04/01/2017,3853902,827,Cardiff University,201709,Education and Commissioning,Supplies & Services
04/01/2017,3853906,420.18,REDACTED,201709,Safeguarding and Family Support,Supplies & Services
04/01/2017,3853918,"27,789.66",Portakabin Ltd,201709,Education and Commissioning,Premises-Related Expenditure
04/01/2017,3853923,"1,368.50",Core Assets Childrens Services Ltd,201709,Education and Commissioning,Third Party Payments
04/01/2017,3853925,"1,173.00",Core Assets Childrens Services Ltd,201709,Education and Commissioning,Third Party Payments
04/01/2017,3853926,"2,440.00",John Kyrle High School,201709,Education and Commissioning,Support Services
04/01/2017,3853930,440.59,John Masefield High School (Academy),201709,Education and Commissioning,Transfer Payments
04/01/2017,3853932,"2,360.00",Northern Link Traffic Data Consultancy Ltd,201709,Commissioning Capital,Capital Expenditure
04/01/2017,3853933,970.53,Centro,201709,Environment and Place,Supplies & Services
04/01/2017,3853934,"1,294.04",Centro,201709,Environment and Place,Supplies & Services
04/01/2017,3853937,"62,024.00",Stagecoach Services Limited,201709,Environment and Place,Third Party Payments
04/01/2017,3853941,420,MBMASOSO Ltd,201709,Mental Health,Supplies & Services
04/01/2017,3853942,420,MBMASOSO Ltd,201709,Mental Health,Supplies & Services
04/01/2017,3853943,420,MBMASOSO Ltd,201709,Mental Health,Supplies & Services
04/01/2017,3853946,"1,064.75",Welsh Water,201709,Environment and Place,Premises-Related Expenditure
04/01/2017,3853948,"1,554.67",Welsh Water,201709,Environment and Place,Premises-Related Expenditure
04/01/2017,3853966,"4,314.98",Hope For Children & Their Families Ltd,201709,Resources,Premises-Related Expenditure
04/01/2017,3853969,"56,250.00",South West Audit Partnership Ltd - SWAP,201709,Resources,Supplies & Services
08/12/2016,3853977,753,Bookpoint Ltd,201709,Schools,Supplies & Services
04/01/2017,3853983,500,Eteach.Com,201709,Schools,Employees
,3853987,"45,963.00",Hereford Integrated Behaviour Outreach Service,201709,Central Childrens Directorate Costs,Third Party Payments
,3853987,"1,500.00",Hereford Integrated Behaviour Outreach Service,201709,Education and Commissioning,Third Party Payments
04/01/2017,3853988,944.46,Shaw Healthcare (Herefordshire) Ltd,201709,Physical Disabilities,Employees
04/01/2017,3853989,942.32,Shaw Healthcare (Herefordshire) Ltd,201709,Physical Disabilities,Employees
04/01/2017,3853996,753.5,Bookpoint Ltd,201709,Schools,Supplies & Services
,,"16,337,774.25",,,,
